{"text_format":"1","workbook":"xlsx","n_sheets":5,"sheets":["TRV-AUTH-FORM","REF","Notes-to-traveler","AR-GSA-RATES","FY2024 Per Diem Rates"],"not_rendered":{"charts":0,"images":4,"macros":1,"external_links":0,"defined_names":5,"comments":1,"pivot_tables":0},"unopened":[],"bounds":{"document_bytes":16777216,"sheet_cells":100000,"rows_first":2000,"rows_last":500,"rows_between":2000,"halvings":0,"cell_chars":16384,"cell_head_chars":4096},"cells_cut":0,"cells_raw":0,"read":"whole","date_system":"1900"}

{"sheet":"TRV-AUTH-FORM","index":0,"n_rows":38,"n_cols":8,"rows_kept":38,"cut":false,"hidden":false,"merged":[[7,3,7,4],[17,6,19,6],[17,7,19,7],[23,4,24,4],[23,2,24,2],[23,3,24,3],[10,3,10,5],[12,3,12,4],[11,3,11,4],[0,0,2,8],[28,3,29,7],[23,5,24,5],[22,6,22,7],[23,6,24,7],[16,0,19,0],[17,3,19,5],[16,3,16,5],[17,1,19,1],[17,2,19,2],[8,3,8,7],[9,3,9,4],[29,1,30,1],[4,3,4,5],[4,6,4,7],[23,1,24,1]]}
["Arkansas Department of Veterans Affairs\nTravel Preauthorization Worksheet                                        \nForm Effective 10/1/2023"]
[]
[]
[null,null,null,null,null,null,"Select from dropdown"]
[null,"1. Trip Details"]
[null,null,null,null,null,null,{"$f":"IFERROR(VLOOKUP(G5,REF!$A:$B,2,FALSE),\"\")","v":""}]
[]
[null,null,null,"Type the traveler(s) name(s) below"]
[1,"Employee(s) Traveling:"]
[null,null,null,"Select from dropdown"]
[2,"Division",null,null,null,null,{"$f":"IFERROR(VLOOKUP(D11,REF!$C:$D,2,FALSE),\"\")","v":""}]
[null,null,null,"Select from dropdown"]
[3,"Official Station",null,null,null,{"$f":"IFERROR(VLOOKUP(D13,REF!$E:$F,2,FALSE),\"\")","v":""},{"$f":"IFERROR(VLOOKUP(D13,REF!$E:$G,3,FALSE),\"\")","v":""}]
[]
[]
[null,"Please provide details of anticipated trip below. "]
[1,"Destination \n(Physical Address)","Trip Classification","Explanation/Purpose for travel",null,null,"Leave Date","Return Date"]
[]
[]
[]
[]
[null,"Please provide estimated costs for the travel below."]
[2,"Estimated Total Mileage","Estimated GSA Lodging Rate (Daily)","Estimated GSA Meal Rate (Daily)","Estimated Airfare","Estimated Other travel costs","Provide explanation supporting other travel costs"]
[]
[]
[]
[]
[]
[3,"Cost Estimate:",null,"All costs provided are \"good faith\" estimates, any costs incurred by the state/agency/travler as a result of this travel that greatly exceed this estimate will require further explanation/documentation."]
[null,{"$f":"(B24*REF!$I$2)+((H18-G18)*C24)+IF(H18-G18>0,(H18-G18-1)*D24+(D24*0.75*2),0)+E24+F24","v":0}]
[]
[]
[]
[]
[null,"2. Budget Verification"]
[]
[]
[null,"3. Approved Travel Req"]

{"sheet":"REF","index":1,"n_rows":16,"n_cols":9,"rows_kept":16,"cut":false,"hidden":true,"merged":[]}
["Manager","Email","Division","Cost Center","Official Station","Street","City/Zip","TripPurposes","CurrStateMileageRate"]
["Kendall Penn","kendall.penn@arkansas.gov","Agency Admin",310241,"Agency Admin(501 Building)","501 Woodlane; Suite401N","Little Rock, AR 72201","02-Official Business",0.52]
["Scott Stanger","scott.stanger@arkansas.gov","ASVH-F",311501,"ASVH-F","1179 N College Ave","Fayetteville, AR 72703","09-Conference"]
["Danny Luncsford","danny.luncsford@arkansas.gov","ASVH-NLR",311514,"ASVH-NLR","2401 John Ashley Dr","North Little Rock, AR  72114","09-Training"]
["Sherrey Bullock  ","Sherrey.Bullock@arkansas.gov","NLR Cem",310222,"NLR Cemetery","1501 W Maryland Ave","North Little Rock, AR 72120","02-Other"]
["Gina Chandler","gina.chandler@arkansas.gov","Birdeye Cem",310226,"Birdeye Cemetery","3600 Hwy 163","Birdeye, AR 72324","09-Other"]
["Stevie Smith","stevie.m.smith@arkansas.gov","Commission Member",310251,"Commission Member"]
["Don Johnson","donald.johnson@arkansas.gov","DVSO ",311213,"DVSO-Jonesboro","511 S. Main Street, Room 118","Jonesboro, AR 72401"]
["Phillip Cappiello","phillip.cappiello@arkansas.gov",null,null,"DVSO-Forrest City","300 Eldridge Road; Suite#2","Forrest City, AR 72335"]
["Richelle Garcia","Richelle.Garcia@arkansas.gov",null,null,"DVSO-Fayetteville","1204 S.W. 14th Street, Suite 8","Bentonville, AR 72712"]
["Darell McGhee","dareell.mcghee@arkansas.gov",null,null,"DVSO -Ft Smith","35 S. 6th Street, Room G6","Fort Smith, AR 72901"]
["Robyn Wertz","robyn.wertz@arkansas.gov",null,null,"DVSO-Mountain Home","1600 S College St","Mountain Home, AR 72653"]
["MaryAnne Parker ","maryanne.parker@arkansas.gov",null,null,"DVSO-NLR","2401 John Ashley Dr","North Little Rock, AR  72114"]
[null,null,null,null,"DVSO-Russellville","104 S. Rochester Ave","Russellville, AR 72801"]
[null,null,null,null,"DVSO-Hope","205 Smith Road, Suite A","Hope, AR 71801"]
[null,null,null,null,"DVSO-Monticello","210 South Main Street","Monticello, AR 71655"]

{"sheet":"Notes-to-traveler","index":2,"n_rows":21,"n_cols":1,"rows_kept":21,"cut":false,"hidden":false,"merged":[]}
["State travel regulations:"]
["http://www.dfa.arkansas.gov/offices/accounting/Documents/travelRegs.pdf"]
[]
["GSA Per Diem lookup tool"]
["http://www.gsa.gov/portal/content/104877"]
[]
["Mileage:"]
["http://maps.google.com"]
["When submitting your tr-1 for this travel, attached a printout of the google maps directions supporting your mileage. "]
["If leaving from your residence: You can only claim mileage for the LESSER of the distance between your home and the destination or your official station and the destination."]
[]
["Meals:"]
["Meals are only allowed when the trip involves overnight travel. Only 15% maximum gratuity on meals will be reimbursed by the state."]
[]
[]
["FORMS:"]
["TR-1: "]
["http://www.dfa.arkansas.gov/offices/accounting/Documents/tr1.pdf"]
[]
[]
["Travel Exp Recon: This form must be completed and submitted with the TR-1 when not all of the expenses are paid for directly by the traveler. I.E. hotel and or airfare were paid for with agency corporate travel card. "]

{"sheet":"AR-GSA-RATES","index":3,"n_rows":681,"n_cols":9,"rows_kept":681,"cut":false,"hidden":false,"merged":[[0,1,0,5],[1,0,1,16383]]}
[null,"https://www.gsa.gov/travel/plan-book/per-diem-rates/per-diem-files"]
["NOTE TO TRAVELER: The below rates are to be used for estimates only, when completing your TR-1 use the GSA lookup tool for actual figures."]
[]
[null,"FY2024 Per Diem Rates - Effective October 1, 2023"]
["ID","STATE","DESTINATION","COUNTY/LOCATION DEFINED","SEASON BEGIN","SEASON END","FY24 Lodging Rate","FY24 M&IE Rate","FY24 M&IE Rate 1st and Last Days"]
[null,null,"Standard CONUS rate applies to all counties not specifically listed. Cities not listed may be located in a listed county."]
[null,"ARKANSAS STATEWIDE","STANDARD AR RATE",null,null,null,107,59,{"$f":"H7*75%","v":44.25}]
[1,"AL","Birmingham","Jefferson","","",113,69,{"$f":"H8*75%","v":51.75}]
[2,"AL","Gulf Shores","Baldwin","October 1","February 28",111,69,51.75]
[2,"AL","Gulf Shores","Baldwin","March 1","May 31",136,69,51.75]
[2,"AL","Gulf Shores","Baldwin","June 1","July 31",173,69,51.75]
[460,"AL","Gulf Shores","Baldwin","August 1","September 30",111,69,51.75]
[460,"AL","Mobile","Mobile","October 1","December 31",96,59,44.25]
[460,"AL","Mobile","Mobile","January 1","March 31",105,59,44.25]
[6,"AL","Mobile","Mobile","April 1","September 30",96,59,44.25]
[7,"AR","Hot Springs","Garland","","",103,64,48]
[9,"AZ","Grand Canyon / Flagstaff","Coconino / Yavapai less the city of Sedona","October 1","October 31",138,74,55.5]
[9,"AZ","Grand Canyon / Flagstaff","Coconino / Yavapai less the city of Sedona","November 1","February 28",96,74,55.5]
[9,"AZ","Grand Canyon / Flagstaff","Coconino / Yavapai less the city of Sedona","March 1","April 30",118,74,55.5]
[8,"AZ","Grand Canyon / Flagstaff","Coconino / Yavapai less the city of Sedona","May 1","September 30",138,74,55.5]
[10,"AZ","Kayenta","Navajo","October 1","October 31",134,64,48]
[10,"AZ","Kayenta","Navajo","November 1","February 28",102,64,48]
[10,"AZ","Kayenta","Navajo","March 1","September 30",134,64,48]
[10,"AZ","Phoenix / Scottsdale","Maricopa","October 1","May 31",151,69,51.75]
[10,"AZ","Phoenix / Scottsdale","Maricopa","June 1","August 31",96,69,51.75]
[11,"AZ","Phoenix / Scottsdale","Maricopa","September 1","September 30",151,69,51.75]
[11,"AZ","Sedona","City Limits of Sedona","October 1","December 31",180,79,59.25]
[11,"AZ","Sedona","City Limits of Sedona","January 1","February 28",146,79,59.25]
[12,"AZ","Sedona","City Limits of Sedona","March 1","April 30",220,79,59.25]
[12,"AZ","Sedona","City Limits of Sedona","May 1","August 31",154,79,59.25]
[12,"AZ","Sedona","City Limits of Sedona","September 1","September 30",180,79,59.25]
[14,"AZ","Tucson","Pima","October 1","December 31",96,64,48]
[481,"AZ","Tucson","Pima","January 1","March 31",133,64,48]
[16,"AZ","Tucson","Pima","April 1","September 30",96,64,48]
[20,"CA","Antioch / Brentwood / Concord","Contra Costa","","",165,74,55.5]
[461,"CA","Bakersfield / Ridgecrest","Kern","","",116,64,48]
[461,"CA","Barstow / Ontario / Victorville","San Bernardino","","",111,64,48]
[461,"CA","Death Valley","Inyo / NAWS China Lake","October 1","October 31",130,69,51.75]
[21,"CA","Death Valley","Inyo / NAWS China Lake","November 1","January 31",109,69,51.75]
[22,"CA","Death Valley","Inyo / NAWS China Lake","February 1","September 30",130,69,51.75]
[22,"CA","Eureka / Arcata / McKinleyville","Humboldt","October 1","May 31",101,69,51.75]
[22,"CA","Eureka / Arcata / McKinleyville","Humboldt","June 1","August 31",129,69,51.75]
[23,"CA","Eureka / Arcata / McKinleyville","Humboldt","September 1","September 30",101,69,51.75]
[23,"CA","Fresno","Fresno","","",110,69,51.75]
[23,"CA","Los Angeles","Los Angeles / Orange / Ventura / Edwards AFB less the city of Santa Monica","October 1","October 31",182,74,55.5]
[24,"CA","Los Angeles","Los Angeles / Orange / Ventura / Edwards AFB less the city of Santa Monica","November 1","December 31",168,74,55.5]
[24,"CA","Los Angeles","Los Angeles / Orange / Ventura / Edwards AFB less the city of Santa Monica","January 1","September 30",182,74,55.5]
[24,"CA","Mammoth Lakes","Mono","October 1","November 30",126,79,59.25]
[26,"CA","Mammoth Lakes","Mono","December 1","April 30",148,79,59.25]
[26,"CA","Mammoth Lakes","Mono","May 1","September 30",126,79,59.25]
[26,"CA","Mill Valley / San Rafael / Novato","Marin","October 1","October 31",189,74,55.5]
[27,"CA","Mill Valley / San Rafael / Novato","Marin","November 1","May 31",166,74,55.5]
[27,"CA","Mill Valley / San Rafael / Novato","Marin","June 1","September 30",189,74,55.5]
[27,"CA","Monterey","Monterey","October 1","May 31",166,74,55.5]
[28,"CA","Monterey","Monterey","June 1","August 31",240,74,55.5]
[28,"CA","Monterey","Monterey","September 1","September 30",166,74,55.5]
[28,"CA","Napa","Napa","October 1","November 30",213,79,59.25]
[29,"CA","Napa","Napa","December 1","March 31",160,79,59.25]
[30,"CA","Napa","Napa","April 1","September 30",213,79,59.25]
[30,"CA","Oakhurst","Madera ","October 1","April 30",104,69,51.75]
[30,"CA","Oakhurst","Madera ","May 1","September 30",137,69,51.75]
[31,"CA","Oakland","Alameda","","",189,74,55.5]
[32,"CA","Palm Springs","Riverside","October 1","October 31",114,69,51.75]
[33,"CA","Palm Springs","Riverside","November 1","April 30",144,69,51.75]
[34,"CA","Palm Springs","Riverside","May 1","September 30",114,69,51.75]
[34,"CA","Point Arena / Gualala","Mendocino","","",129,79,59.25]
[34,"CA","Sacramento","Sacramento","","",145,69,51.75]
[35,"CA","San Diego","San Diego","October 1","January 31",161,74,55.5]
[36,"CA","San Diego","San Diego","February 1","July 31",181,74,55.5]
[36,"CA","San Diego","San Diego","August 1","September 30",161,74,55.5]
[36,"CA","San Francisco","San Francisco","October 1","December 31",288,79,59.25]
[37,"CA","San Francisco","San Francisco","January 1","March 31",333,79,{"$f":"H72*75%","v":59.25}]
[37,"CA","San Francisco","San Francisco","April 1","August 31",270,79,59.25]
[37,"CA","San Francisco","San Francisco","September 1","September 30",288,79,59.25]
[38,"CA","San Luis Obispo","San Luis Obispo","","",124,74,55.5]
[38,"CA","San Mateo / Foster City / Belmont","San Mateo","","",222,74,55.5]
[38,"CA","Santa Barbara","Santa Barbara","October 1","June 30",177,74,55.5]
[39,"CA","Santa Barbara","Santa Barbara","July 1","August 31",228,74,55.5]
[39,"CA","Santa Barbara","Santa Barbara","September 1","September 30",177,74,55.5]
[39,"CA","Santa Cruz","Santa Cruz","October 1","May 31",128,69,51.75]
[40,"CA","Santa Cruz","Santa Cruz","June 1","August 31",172,69,51.75]
[40,"CA","Santa Cruz","Santa Cruz","September 1","September 30",128,69,51.75]
[40,"CA","Santa Monica ","City limits of Santa Monica","October 1","May 31",239,79,59.25]
[41,"CA","Santa Monica ","City limits of Santa Monica","June 1","August 31",284,79,59.25]
[41,"CA","Santa Monica ","City limits of Santa Monica","September 1","September 30",239,79,59.25]
[41,"CA","Santa Rosa","Sonoma","","",157,74,55.5]
[42,"CA","South Lake Tahoe","El Dorado","October 1","December 31",135,74,55.5]
[42,"CA","South Lake Tahoe","El Dorado","January 1","June 30",120,74,55.5]
[42,"CA","South Lake Tahoe","El Dorado","July 1","September 30",135,74,55.5]
[42,"CA","Stockton ","San Joaquin","","",140,74,55.5]
[43,"CA","Sunnyvale / Palo Alto / San Jose","Santa Clara","","",245,74,55.5]
[44,"CA","Tahoe City","Placer","","",124,74,55.5]
[44,"CA","Truckee","Nevada ","","",126,79,59.25]
[44,"CA","Visalia","Tulare","","",113,69,51.75]
[45,"CA","West Sacramento / Davis","Yolo","","",133,69,51.75]
[46,"CA","Yosemite National Park","Mariposa","October 1","November 30",120,79,59.25]
[47,"CA","Yosemite National Park","Mariposa","December 1","August 31",136,79,59.25]
[48,"CA","Yosemite National Park","Mariposa","September 1","September 30",120,79,59.25]
[49,"CO","Aspen","Pitkin","October 1","November 30",188,79,59.25]
[49,"CO","Aspen","Pitkin","December 1","March 31",375,79,59.25]
[49,"CO","Aspen","Pitkin","April 1","May 31",147,79,59.25]
[49,"CO","Aspen","Pitkin","June 1","September 30",188,79,59.25]
[50,"CO","Boulder / Broomfield","Boulder / Broomfield","October 1","April 30",128,69,51.75]
[50,"CO","Boulder / Broomfield","Boulder / Broomfield","May 1","August 31",160,69,51.75]
[50,"CO","Boulder / Broomfield","Boulder / Broomfield","September 1","September 30",128,69,51.75]
[50,"CO","Colorado Springs","El Paso","October 1","May 31",112,69,51.75]
[50,"CO","Colorado Springs","El Paso","June 1","August 31",147,69,51.75]
[52,"CO","Colorado Springs","El Paso","September 1","September 30",112,69,51.75]
[53,"CO","Cortez","Montezuma","October 1","May 31",96,64,48]
[54,"CO","Cortez","Montezuma","June 1","September 30",122,64,48]
[54,"CO","Crested Butte / Gunnison","Gunnison","October 1","November 30",126,74,55.5]
[55,"CO","Crested Butte / Gunnison","Gunnison","December 1","March 31",175,74,55.5]
[55,"CO","Crested Butte / Gunnison","Gunnison","April 1","May 31",106,74,55.5]
[55,"CO","Crested Butte / Gunnison","Gunnison","June 1","September 30",126,74,55.5]
[56,"CO","Denver / Aurora","Denver / Adams / Arapahoe / Jefferson","October 1","October 31",199,79,59.25]
[427,"CO","Denver / Aurora","Denver / Adams / Arapahoe / Jefferson","November 1","December 31",153,79,59.25]
[57,"CO","Denver / Aurora","Denver / Adams / Arapahoe / Jefferson","January 1","March 31",162,79,59.25]
[57,"CO","Denver / Aurora","Denver / Adams / Arapahoe / Jefferson","April 1","September 30",199,79,59.25]
[58,"CO","Douglas ","Douglas","October 1","May 31",115,69,51.75]
[493,"CO","Douglas ","Douglas","June 1","August 31",140,69,51.75]
[493,"CO","Douglas ","Douglas","September 1","September 30",115,69,51.75]
[493,"CO","Durango","La Plata","October 1","May 31",102,74,55.5]
[493,"CO","Durango","La Plata","June 1","September 30",151,74,55.5]
[61,"CO","Fort Collins / Loveland","Larimer","","",113,69,51.75]
[61,"CO","Grand Lake","Grand","October 1","November 30",138,79,59.25]
[61,"CO","Grand Lake","Grand","December 1","March 31",217,79,59.25]
[63,"CO","Grand Lake","Grand","April 1","May 31",114,79,59.25]
[63,"CO","Grand Lake","Grand","June 1","September 30",138,79,59.25]
[63,"CO","Montrose","Montrose","October 1","May 31",99,69,51.75]
[63,"CO","Montrose","Montrose","June 1","August 31",113,69,51.75]
[64,"CO","Montrose","Montrose","September 1","September 30",99,69,51.75]
[64,"CO","Silverthorne / Breckenridge","Summit","October 1","November 30",152,79,59.25]
[64,"CO","Silverthorne / Breckenridge","Summit","December 1","March 31",250,79,59.25]
[64,"CO","Silverthorne / Breckenridge","Summit","April 1","May 31",119,79,59.25]
[65,"CO","Silverthorne / Breckenridge","Summit","June 1","September 30",152,79,59.25]
[65,"CO","Steamboat Springs","Routt","October 1","November 30",115,79,{"$f":"H136*75%","v":59.25}]
[65,"CO","Steamboat Springs","Routt","December 1","March 31",129,79,59.25]
[65,"CO","Steamboat Springs","Routt","April 1","May 31",96,79,59.25]
[65,"CO","Steamboat Springs","Routt","June 1","September 30",115,79,59.25]
[66,"CO","Telluride","San Miguel","October 1","November 30",197,79,59.25]
[66,"CO","Telluride","San Miguel","December 1","March 31",418,79,59.25]
[66,"CO","Telluride","San Miguel","April 1","September 30",197,79,59.25]
[66,"CO","Vail","Eagle","October 1","November 30",179,79,59.25]
[66,"CO","Vail","Eagle","December 1","March 31",397,79,59.25]
[67,"CO","Vail","Eagle","April 1","September 30",179,79,59.25]
[68,"CT","Bridgeport / Danbury","Fairfield","","",125,69,51.75]
[69,"CT","Cromwell / Old Saybrook","Middlesex","","",97,64,48]
[71,"CT","Hartford","Hartford","","",132,69,51.75]
[72,"CT","New Haven","New Haven","","",114,69,51.75]
[75,"CT","New London / Groton","New London","","",104,69,51.75]
[75,"DC","District of Columbia","Washington DC (also the cities of Alexandria, Falls Church and Fairfax, and the counties of Arlington and Fairfax, in Virginia; and the counties of Montgomery and Prince George's in Maryland)","October 1","October 31",257,79,59.25]
[75,"DC","District of Columbia","Washington DC (also the cities of Alexandria, Falls Church and Fairfax, and the counties of Arlington and Fairfax, in Virginia; and the counties of Montgomery and Prince George's in Maryland)","November 1","February 28",188,79,59.25]
[75,"DC","District of Columbia","Washington DC (also the cities of Alexandria, Falls Church and Fairfax, and the counties of Arlington and Fairfax, in Virginia; and the counties of Montgomery and Prince George's in Maryland)","March 1","June 30",258,79,59.25]
[75,"DC","District of Columbia","Washington DC (also the cities of Alexandria, Falls Church and Fairfax, and the counties of Arlington and Fairfax, in Virginia; and the counties of Montgomery and Prince George's in Maryland)","July 1","August 31",172,79,59.25]
[76,"DC","District of Columbia","Washington DC (also the cities of Alexandria, Falls Church and Fairfax, and the counties of Arlington and Fairfax, in Virginia; and the counties of Montgomery and Prince George's in Maryland)","September 1","September 30",257,79,59.25]
[76,"DE","Lewes","Sussex","October 1","April 30",96,64,48]
[77,"DE","Lewes","Sussex","May 1","June 30",138,64,48]
[77,"DE","Lewes","Sussex","July 1","August 31",200,64,48]
[77,"DE","Lewes","Sussex","September 1","September 30",96,64,48]
[78,"DE","Wilmington","New Castle","","",131,64,48]
[99,"FL","Boca Raton / Delray Beach / Jupiter","Palm Beach / Hendry","October 1","November 30",121,69,51.75]
[99,"FL","Boca Raton / Delray Beach / Jupiter","Palm Beach / Hendry","December 1","April 30",205,69,51.75]
[99,"FL","Boca Raton / Delray Beach / Jupiter","Palm Beach / Hendry","May 1","September 30",121,69,51.75]
[80,"FL","Bradenton","Manatee","October 1","November 30",96,64,48]
[80,"FL","Bradenton","Manatee","December 1","January 31",111,64,48]
[80,"FL","Bradenton","Manatee","February 1","March 31",150,64,48]
[81,"FL","Bradenton","Manatee","April 1","September 30",96,64,48]
[81,"FL","Cocoa Beach","Brevard","October 1","January 31",141,74,55.5]
[81,"FL","Cocoa Beach","Brevard","February 1","March 31",171,74,55.5]
[82,"FL","Cocoa Beach","Brevard","April 1","September 30",141,74,55.5]
[82,"FL","Daytona Beach","Volusia","October 1","January 31",96,69,51.75]
[82,"FL","Daytona Beach","Volusia","February 1","March 31",130,69,51.75]
[82,"FL","Daytona Beach","Volusia","April 1","July 31",114,69,51.75]
[84,"FL","Daytona Beach","Volusia","August 1","September 30",96,69,51.75]
[84,"FL","Fort Lauderdale","Broward","October 1","December 31",151,69,51.75]
[84,"FL","Fort Lauderdale","Broward","January 1","April 30",204,69,51.75]
[84,"FL","Fort Lauderdale","Broward","May 1","September 30",123,69,51.75]
[85,"FL","Fort Myers","Lee","October 1","January 31",117,64,48]
[85,"FL","Fort Myers","Lee","February 1","March 31",208,64,48]
[85,"FL","Fort Myers","Lee","April 1","September 30",117,64,48]
[83,"FL","Fort Walton Beach / De Funiak Springs","Okaloosa / Walton","October 1","October 31",142,69,51.75]
[83,"FL","Fort Walton Beach / De Funiak Springs","Okaloosa / Walton","November 1","February 28",96,69,51.75]
[83,"FL","Fort Walton Beach / De Funiak Springs","Okaloosa / Walton","March 1","May 31",166,69,51.75]
[83,"FL","Fort Walton Beach / De Funiak Springs","Okaloosa / Walton","June 1","July 31",238,69,51.75]
[83,"FL","Fort Walton Beach / De Funiak Springs","Okaloosa / Walton","August 1","September 30",142,69,51.75]
[88,"FL","Gulf Breeze","Santa Rosa","October 1","February 28",100,59,44.25]
[89,"FL","Gulf Breeze","Santa Rosa","March 1","May 31",129,59,44.25]
[89,"FL","Gulf Breeze","Santa Rosa","June 1","July 31",177,59,44.25]
[89,"FL","Gulf Breeze","Santa Rosa","August 1","September 30",100,59,44.25]
[91,"FL","Key West","Monroe","October 1","November 30",207,69,51.75]
[91,"FL","Key West","Monroe","December 1","April 30",304,69,51.75]
[91,"FL","Key West","Monroe","May 1","July 31",208,69,51.75]
[91,"FL","Key West","Monroe","August 1","September 30",172,69,51.75]
[95,"FL","Miami","Miami-Dade","October 1","November 30",127,69,51.75]
[95,"FL","Miami","Miami-Dade","December 1","March 31",192,69,51.75]
[95,"FL","Miami","Miami-Dade","April 1","May 31",150,69,51.75]
[95,"FL","Miami","Miami-Dade","June 1","September 30",115,69,51.75]
[96,"FL","Naples","Collier","October 1","November 30",121,69,51.75]
[96,"FL","Naples","Collier","December 1","January 31",194,69,51.75]
[96,"FL","Naples","Collier","February 1","April 30",235,69,{"$f":"H200*75%","v":51.75}]
[98,"FL","Naples","Collier","May 1","September 30",121,69,51.75]
[98,"FL","Orlando","Orange","October 1","December 31",129,69,51.75]
[100,"FL","Orlando","Orange","January 1","March 31",153,69,51.75]
[100,"FL","Orlando","Orange","April 1","September 30",129,69,51.75]
[100,"FL","Panama City","Bay","October 1","February 28",146,64,48]
[100,"FL","Panama City","Bay","March 1","May 31",165,64,48]
[101,"FL","Panama City","Bay","June 1","September 30",146,64,48]
[101,"FL","Pensacola ","Escambia","October 1","February 28",109,64,48]
[101,"FL","Pensacola ","Escambia","March 1","May 31",134,64,48]
[101,"FL","Pensacola ","Escambia","June 1","July 31",170,64,48]
[102,"FL","Pensacola ","Escambia","August 1","September 30",109,64,48]
[102,"FL","Punta Gorda","Charlotte","October 1","January 31",96,64,48]
[102,"FL","Punta Gorda","Charlotte","February 1","March 31",163,64,48]
[103,"FL","Punta Gorda","Charlotte","April 1","September 30",96,64,48]
[103,"FL","Sarasota","Sarasota","October 1","January 31",103,69,51.75]
[103,"FL","Sarasota","Sarasota","February 1","April 30",154,69,51.75]
[104,"FL","Sarasota","Sarasota","May 1","September 30",103,69,51.75]
[105,"FL","Sebring","Highlands","October 1","January 31",96,64,48]
[106,"FL","Sebring","Highlands","February 1","March 31",159,64,48]
[106,"FL","Sebring","Highlands","April 1","September 30",96,64,48]
[106,"FL","St. Augustine","St. Johns","","",133,69,51.75]
[107,"FL","Stuart","Martin","October 1","January 31",111,69,51.75]
[108,"FL","Stuart","Martin","February 1","March 31",169,69,51.75]
[108,"FL","Stuart","Martin","April 1","September 30",111,69,51.75]
[108,"FL","Tallahassee","Leon","October 1","December 31",111,64,48]
[109,"FL","Tallahassee","Leon","January 1","March 31",148,64,48]
[109,"FL","Tallahassee","Leon","April 1","September 30",111,64,48]
[109,"FL","Tampa / St. Petersburg","Pinellas / Hillsborough","October 1","December 31",124,69,51.75]
[110,"FL","Tampa / St. Petersburg","Pinellas / Hillsborough","January 1","April 30",163,69,51.75]
[111,"FL","Tampa / St. Petersburg","Pinellas / Hillsborough","May 1","September 30",124,69,51.75]
[413,"FL","Vero Beach","Indian River","October 1","November 30",131,69,51.75]
[115,"FL","Vero Beach","Indian River","December 1","April 30",188,69,51.75]
[115,"FL","Vero Beach","Indian River","May 1","September 30",131,69,51.75]
[115,"GA","Athens","Clarke","","",107,59,44.25]
[116,"GA","Atlanta","Fulton / Dekalb","","",163,74,55.5]
[116,"GA","Augusta","Richmond","","",107,59,44.25]
[116,"GA","Jekyll Island / Brunswick","Glynn","October 1","February 28",143,79,59.25]
[117,"GA","Jekyll Island / Brunswick","Glynn","March 1","July 31",190,79,59.25]
[476,"GA","Jekyll Island / Brunswick","Glynn","August 1","September 30",143,79,59.25]
[118,"GA","Marietta","Cobb","","",121,64,48]
[466,"GA","Savannah","Chatham","October 1","February 28",120,69,51.75]
[466,"GA","Savannah","Chatham","March 1","April 30",138,69,51.75]
[120,"GA","Savannah","Chatham","May 1","September 30",120,69,51.75]
[120,"IA","Dallas","Dallas","October 1","December 31",105,69,51.75]
[120,"IA","Dallas","Dallas","January 1","August 31",111,69,51.75]
[122,"IA","Dallas","Dallas","September 1","September 30",105,69,51.75]
[422,"IA","Des Moines","Polk","","",111,64,48]
[123,"ID","Boise","Ada","","",147,74,55.5]
[123,"ID","Coeur d'Alene","Kootenai","October 1","May 31",96,64,48]
[123,"ID","Coeur d'Alene","Kootenai","June 1","August 31",146,64,48]
[123,"ID","Coeur d'Alene","Kootenai","September 1","September 30",96,64,48]
[123,"ID","Sun Valley / Ketchum","Blaine / Elmore","October 1","May 31",108,74,55.5]
[462,"ID","Sun Valley / Ketchum","Blaine / Elmore","June 1","September 30",138,74,55.5]
[124,"IL","Bolingbrook / Romeoville / Lemont","Will","","",105,64,48]
[127,"IL","Chicago","Cook / Lake","October 1","November 30",218,79,59.25]
[129,"IL","Chicago","Cook / Lake","December 1","March 31",134,79,59.25]
[414,"IL","Chicago","Cook / Lake","April 1","June 30",216,79,59.25]
[130,"IL","Chicago","Cook / Lake","July 1","August 31",187,79,59.25]
[131,"IL","Chicago","Cook / Lake","September 1","September 30",218,79,59.25]
[134,"IL","East St. Louis / O'Fallon / Fairview Heights","St. Clair","","",141,64,48]
[137,"IL","Oak Brook Terrace","DuPage","","",114,64,48]
[138,"IN","Bloomington ","Monroe","October 1","April 30",96,64,48]
[139,"IN","Bloomington ","Monroe","May 1","August 31",106,64,48]
[436,"IN","Bloomington ","Monroe","September 1","September 30",96,64,{"$f":"H264*75%","v":48}]
[140,"IN","Ft. Wayne","Allen","","",108,64,48]
[141,"IN","Hammond / Munster / Merrillville","Lake","","",102,64,48]
[141,"IN","Indianapolis / Carmel","Marion / Hamilton","","",127,69,51.75]
[141,"IN","Lafayette / West Lafayette","Tippecanoe","October 1","July 31",100,64,48]
[478,"IN","Lafayette / West Lafayette","Tippecanoe","August 1","September 30",118,64,48]
[142,"KS","Kansas City / Overland Park","Wyandotte / Johnson / Leavenworth","","",123,64,48]
[144,"KS","Wichita","Sedgwick","","",103,64,48]
[144,"KY","Boone","Boone","","",114,64,48]
[144,"KY","Kenton","Kenton","","",151,74,55.5]
[147,"KY","Lexington","Fayette","","",110,64,48]
[148,"KY","Louisville","Jefferson","October 1","October 31",131,64,48]
[148,"KY","Louisville","Jefferson","November 1","January 31",113,64,48]
[148,"KY","Louisville","Jefferson","February 1","May 31",139,64,48]
[148,"KY","Louisville","Jefferson","June 1","September 30",131,64,48]
[148,"LA","Alexandria / Leesville / Natchitoches","Allen / Jefferson Davis / Natchitoches / Rapides / Vernon Parishes","","",99,64,48]
[149,"LA","Baton Rouge","East Baton Rouge Parish","","",99,69,51.75]
[150,"LA","New Orleans","Orleans / Jefferson Parishes","October 1","December 31",136,74,55.5]
[150,"LA","New Orleans","Orleans / Jefferson Parishes","January 1","May 31",158,74,55.5]
[150,"LA","New Orleans","Orleans / Jefferson Parishes","June 1","September 30",136,74,55.5]
[151,"MA","Andover","Essex","","",123,64,48]
[151,"MA","Boston / Cambridge","Suffolk, city of Cambridge","October 1","October 31",309,79,59.25]
[151,"MA","Boston / Cambridge","Suffolk, city of Cambridge","November 1","February 28",185,79,59.25]
[152,"MA","Boston / Cambridge","Suffolk, city of Cambridge","March 1","June 30",281,79,59.25]
[152,"MA","Boston / Cambridge","Suffolk, city of Cambridge","July 1","August 31",264,79,59.25]
[153,"MA","Boston / Cambridge","Suffolk, city of Cambridge","September 1","September 30",309,79,59.25]
[153,"MA","Burlington / Woburn","Middlesex less the city of Cambridge","October 1","October 31",168,69,51.75]
[153,"MA","Burlington / Woburn","Middlesex less the city of Cambridge","November 1","April 30",142,69,51.75]
[153,"MA","Burlington / Woburn","Middlesex less the city of Cambridge","May 1","September 30",168,69,51.75]
[154,"MA","Falmouth","City limits of Falmouth","October 1","April 30",134,69,51.75]
[155,"MA","Falmouth","City limits of Falmouth","May 1","June 30",171,69,51.75]
[156,"MA","Falmouth","City limits of Falmouth","July 1","August 31",273,69,51.75]
[157,"MA","Falmouth","City limits of Falmouth","September 1","September 30",134,69,51.75]
[158,"MA","Hyannis","Barnstable less the city of Falmouth","October 1","June 30",114,69,51.75]
[160,"MA","Hyannis","Barnstable less the city of Falmouth","July 1","August 31",197,69,51.75]
[161,"MA","Hyannis","Barnstable less the city of Falmouth","September 1","September 30",114,69,51.75]
[162,"MA","Martha's Vineyard","Dukes","October 1","May 31",158,79,59.25]
[162,"MA","Martha's Vineyard","Dukes","June 1","September 30",340,79,59.25]
[162,"MA","Nantucket","Nantucket","October 1","May 31",163,79,59.25]
[163,"MA","Nantucket","Nantucket","June 1","September 30",354,79,59.25]
[163,"MA","Northampton","Hampshire","","",122,69,51.75]
[163,"MA","Pittsfield","Berkshire","October 1","May 31",118,64,48]
[163,"MA","Pittsfield","Berkshire","June 1","August 31",154,64,48]
[429,"MA","Pittsfield","Berkshire","September 1","September 30",118,64,48]
[164,"MA","Plymouth / Taunton / New Bedford","Plymouth / Bristol","","",113,69,51.75]
[164,"MA","Quincy","Norfolk","","",150,69,51.75]
[164,"MA","Springfield","Hampden","","",115,64,48]
[473,"MA","Worcester","Worcester","","",125,69,51.75]
[473,"MD","Aberdeen / Bel Air / Belcamp","Harford","","",104,64,48]
[473,"MD","Annapolis","Anne Arundel","October 1","October 31",133,69,51.75]
[165,"MD","Annapolis","Anne Arundel","November 1","April 30",106,69,51.75]
[166,"MD","Annapolis","Anne Arundel","May 1","September 30",133,69,51.75]
[169,"MD","Baltimore City","Baltimore City","October 1","February 28",137,69,51.75]
[170,"MD","Baltimore City","Baltimore City","March 1","June 30",151,69,51.75]
[170,"MD","Baltimore City","Baltimore City","July 1","September 30",137,69,51.75]
[170,"MD","Baltimore County","Baltimore","","",101,64,48]
[171,"MD","Cambridge / St. Michaels","Dorchester / Talbot","October 1","May 31",121,64,48]
[171,"MD","Cambridge / St. Michaels","Dorchester / Talbot","June 1","August 31",161,64,48]
[171,"MD","Cambridge / St. Michaels","Dorchester / Talbot","September 1","September 30",121,64,48]
[171,"MD","Centreville","Queen Anne","","",119,64,48]
[172,"MD","Columbia","Howard","","",106,69,51.75]
[172,"MD","Frederick","Frederick","","",100,64,48]
[172,"MD","Ocean City","Worcester","October 1","June 30",106,69,51.75]
[172,"MD","Ocean City","Worcester","July 1","August 31",256,69,51.75]
[172,"MD","Ocean City","Worcester","September 1","September 30",106,69,{"$f":"H328*75%","v":51.75}]
[173,"ME","Bar Harbor / Rockport","Hancock / Knox","October 1","October 31",166,74,55.5]
[173,"ME","Bar Harbor / Rockport","Hancock / Knox","November 1","June 30",124,74,55.5]
[173,"ME","Bar Harbor / Rockport","Hancock / Knox","July 1","August 31",209,74,55.5]
[173,"ME","Bar Harbor / Rockport","Hancock / Knox","September 1","September 30",166,74,55.5]
[174,"ME","Kennebunk / Kittery / Sanford","York ","October 1","October 31",131,69,51.75]
[174,"ME","Kennebunk / Kittery / Sanford","York ","November 1","June 30",103,69,51.75]
[174,"ME","Kennebunk / Kittery / Sanford","York ","July 1","August 31",200,69,51.75]
[175,"ME","Kennebunk / Kittery / Sanford","York ","September 1","September 30",131,69,51.75]
[176,"ME","Portland","Cumberland / Sagadahoc","October 1","October 31",149,64,48]
[178,"ME","Portland","Cumberland / Sagadahoc","November 1","June 30",110,64,48]
[179,"ME","Portland","Cumberland / Sagadahoc","July 1","August 31",176,64,48]
[183,"ME","Portland","Cumberland / Sagadahoc","September 1","September 30",149,64,48]
[184,"MI","Ann Arbor","Washtenaw","October 1","April 30",118,69,51.75]
[185,"MI","Ann Arbor","Washtenaw","May 1","August 31",134,69,51.75]
[187,"MI","Ann Arbor","Washtenaw","September 1","September 30",118,69,51.75]
[187,"MI","Detroit","Wayne","","",133,64,48]
[187,"MI","East Lansing / Lansing","Ingham / Eaton","","",106,64,48]
[188,"MI","Grand Rapids","Kent","","",114,64,48]
[190,"MI","Holland","Ottawa","October 1","April 30",116,64,48]
[190,"MI","Holland","Ottawa","May 1","June 30",122,64,48]
[190,"MI","Holland","Ottawa","July 1","September 30",116,64,48]
[192,"MI","Kalamazoo / Battle Creek ","Kalamazoo / Calhoun","","",104,64,48]
[192,"MI","Mackinac Island","Mackinac","October 1","June 30",96,74,55.5]
[192,"MI","Mackinac Island","Mackinac","July 1","August 31",134,74,55.5]
[193,"MI","Mackinac Island","Mackinac","September 1","September 30",96,74,55.5]
[195,"MI","Midland","Midland","","",119,59,44.25]
[195,"MI","Muskegon","Muskegon","October 1","May 31",96,64,48]
[195,"MI","Muskegon","Muskegon","June 1","August 31",126,64,48]
[196,"MI","Muskegon","Muskegon","September 1","September 30",96,64,48]
[196,"MI","Petoskey","Emmet","October 1","June 30",110,64,48]
[196,"MI","Petoskey","Emmet","July 1","August 31",203,64,48]
[196,"MI","Petoskey","Emmet","September 1","September 30",110,64,48]
[199,"MI","Pontiac / Auburn Hills ","Oakland","","",117,64,48]
[199,"MI","South Haven","Van Buren","October 1","May 31",96,64,48]
[199,"MI","South Haven","Van Buren","June 1","August 31",115,64,48]
[200,"MI","South Haven","Van Buren","September 1","September 30",96,64,48]
[201,"MI","Traverse City","Grand Traverse","October 1","June 30",110,64,48]
[202,"MI","Traverse City","Grand Traverse","July 1","August 31",195,64,48]
[204,"MI","Traverse City","Grand Traverse","September 1","September 30",110,64,48]
[207,"MN","Duluth","St. Louis","October 1","October 31",165,79,59.25]
[477,"MN","Duluth","St. Louis","November 1","May 31",121,79,59.25]
[447,"MN","Duluth","St. Louis","June 1","September 30",165,79,59.25]
[211,"MN","Eagan / Burnsville / Mendota Heights","Dakota","","",100,69,51.75]
[215,"MN","Minneapolis / St. Paul","Hennepin / Ramsey","","",148,79,59.25]
[215,"MN","Rochester","Olmsted","","",133,64,48]
[212,"MO","Kansas City","Jackson / Clay / Cass / Platte","","",123,64,48]
[488,"MO","St. Louis","St. Louis / St. Louis City / St. Charles","","",141,64,48]
[426,"MS","Oxford","Lafayette","","",99,64,48]
[213,"MS","Southaven","Desoto","","",109,59,44.25]
[213,"MS","Starkville ","Oktibbeha","","",103,64,48]
[213,"MT","Big Sky / West Yellowstone/Gardiner","Gallatin/Park","October 1","May 31",124,79,59.25]
[216,"MT","Big Sky / West Yellowstone/Gardiner","Gallatin/Park","June 1","September 30",241,79,59.25]
[217,"MT","Helena","Lewis and Clark","","",103,64,48]
[217,"MT","Kalispell/Whitefish","Flathead","October 1","June 30",96,64,48]
[217,"MT","Kalispell/Whitefish","Flathead","July 1","August 31",177,64,48]
[218,"MT","Kalispell/Whitefish","Flathead","September 1","September 30",96,64,48]
[219,"MT","Missoula","Missoula","October 1","May 31",96,69,51.75]
[221,"MT","Missoula","Missoula","June 1","September 30",131,69,51.75]
[464,"NC","Asheville ","Buncombe","October 1","December 31",120,64,48]
[222,"NC","Asheville ","Buncombe","January 1","March 31",97,64,48]
[222,"NC","Asheville ","Buncombe","April 1","September 30",120,64,48]
[224,"NC","Atlantic Beach / Morehead City","Carteret","October 1","February 28",100,64,48]
[224,"NC","Atlantic Beach / Morehead City","Carteret","March 1","August 31",132,64,48]
[224,"NC","Atlantic Beach / Morehead City","Carteret","September 1","September 30",100,64,{"$f":"H392*75%","v":48}]
[224,"NC","Chapel Hill","Orange","","",111,74,55.5]
[226,"NC","Charlotte","Mecklenburg","","",129,69,51.75]
[227,"NC","Durham","Durham","","",115,64,48]
[229,"NC","Fayetteville","Cumberland","","",109,64,48]
[484,"NC","Greensboro","Guilford","October 1","April 30",112,64,48]
[483,"NC","Greensboro","Guilford","May 1","September 30",103,64,48]
[482,"NC","Kill Devil Hills","Dare","October 1","March 31",96,74,55.5]
[231,"NC","Kill Devil Hills","Dare","April 1","September 30",151,74,55.5]
[232,"NC","Raleigh","Wake","","",123,64,48]
[233,"NC","Wilmington","New Hanover","","",119,59,44.25]
[233,"NE","Omaha","Douglas","","",110,64,48]
[233,"NH","Concord","Merrimack","","",111,64,48]
[233,"NH","Conway","Caroll","October 1","February 28",132,69,51.75]
[234,"NH","Conway","Caroll","March 1","June 30",116,69,51.75]
[235,"NH","Conway","Caroll","July 1","August 31",155,69,51.75]
[235,"NH","Conway","Caroll","September 1","September 30",132,69,51.75]
[236,"NH","Durham","Strafford","October 1","June 30",110,59,44.25]
[237,"NH","Durham","Strafford","July 1","August 31",137,59,44.25]
[238,"NH","Durham","Strafford","September 1","September 30",110,59,44.25]
[238,"NH","Laconia","Belknap","October 1","October 31",149,64,48]
[238,"NH","Laconia","Belknap","November 1","May 31",122,64,48]
[239,"NH","Laconia","Belknap","June 1","September 30",149,64,48]
[241,"NH","Lebanon / Lincoln / West Lebanon","Grafton","","",141,59,44.25]
[242,"NH","Manchester","Hillsborough","October 1","February 28",124,64,48]
[243,"NH","Manchester","Hillsborough","March 1","April 30",111,64,48]
[244,"NH","Manchester","Hillsborough","May 1","September 30",124,64,48]
[246,"NH","Portsmouth","Rockingham","October 1","October 31",145,64,48]
[247,"NH","Portsmouth","Rockingham","November 1","June 30",115,64,48]
[249,"NH","Portsmouth","Rockingham","July 1","August 31",163,64,48]
[248,"NH","Portsmouth","Rockingham","September 1","September 30",145,64,48]
[250,"NJ","Cherry Hill / Moorestown","Camden / Burlington","","",99,69,51.75]
[251,"NJ","Eatontown / Freehold","Monmouth","","",120,69,51.75]
[251,"NJ","Edison / Piscataway","Middlesex ","","",116,69,51.75]
[251,"NJ","Flemington","Hunterdon","","",126,69,51.75]
[479,"NJ","Newark","Essex / Bergen / Hudson / Passaic","","",147,69,51.75]
[472,"NJ","Parsippany","Morris","","",161,69,51.75]
[254,"NJ","Princeton / Trenton","Mercer","","",137,69,51.75]
[423,"NJ","Somerset","Somerset","","",153,64,48]
[255,"NJ","Springfield / Cranford / New Providence","Union","","",126,69,51.75]
[255,"NJ","Toms River","Ocean","October 1","June 30",120,69,51.75]
[255,"NJ","Toms River","Ocean","July 1","August 31",165,69,51.75]
[256,"NJ","Toms River","Ocean","September 1","September 30",120,69,51.75]
[256,"NM","Albuquerque","Bernalillo","","",111,69,51.75]
[256,"NM","Carlsbad","Eddy","","",212,64,48]
[258,"NM","Santa Fe","Santa Fe","October 1","December 31",133,69,51.75]
[269,"NM","Santa Fe","Santa Fe","January 1","February 28",104,69,51.75]
[260,"NM","Santa Fe","Santa Fe","March 1","September 30",133,69,51.75]
[261,"NM","Taos","Taos","","",103,64,48]
[262,"NV","Incline Village / Reno / Sparks","Washoe","October 1","June 30",102,69,51.75]
[262,"NV","Incline Village / Reno / Sparks","Washoe","July 1","August 31",126,69,51.75]
[262,"NV","Incline Village / Reno / Sparks","Washoe","September 1","September 30",102,69,51.75]
[277,"NV","Las Vegas","Clark","","",120,69,51.75]
[264,"NY","Albany","Albany","","",114,69,51.75]
[265,"NY","Binghamton","Broome","","",101,64,48]
[265,"NY","Buffalo","Erie","","",106,69,51.75]
[265,"NY","Floral Park / Garden City / Great Neck","Nassau","","",150,74,55.5]
[265,"NY","Glens Falls","Warren","October 1","June 30",102,69,51.75]
[265,"NY","Glens Falls","Warren","July 1","August 31",168,69,51.75]
[266,"NY","Glens Falls","Warren","September 1","September 30",102,69,51.75]
[266,"NY","Ithaca","Tompkins","October 1","November 30",134,74,55.5]
[266,"NY","Ithaca","Tompkins","December 1","January 31",104,74,55.5]
[266,"NY","Ithaca","Tompkins","February 1","September 30",134,74,55.5]
[266,"NY","Kingston","Ulster","","",113,69,51.75]
[267,"NY","Lake Placid","Essex","October 1","February 28",125,79,{"$f":"H456*75%","v":59.25}]
[267,"NY","Lake Placid","Essex","March 1","June 30",112,79,59.25]
[267,"NY","Lake Placid","Essex","July 1","August 31",182,79,59.25]
[268,"NY","Lake Placid","Essex","September 1","September 30",125,79,59.25]
[270,"NY","New York City","Bronx / Kings / New York / Queens / Richmond","October 1","December 31",286,79,59.25]
[271,"NY","New York City","Bronx / Kings / New York / Queens / Richmond","January 1","February 28",159,79,59.25]
[272,"NY","New York City","Bronx / Kings / New York / Queens / Richmond","March 1","June 30",258,79,59.25]
[273,"NY","New York City","Bronx / Kings / New York / Queens / Richmond","July 1","August 31",220,79,59.25]
[273,"NY","New York City","Bronx / Kings / New York / Queens / Richmond","September 1","September 30",286,79,59.25]
[273,"NY","Niagara Falls","Niagara","October 1","May 31",96,69,51.75]
[274,"NY","Niagara Falls","Niagara","June 1","August 31",115,69,51.75]
[275,"NY","Niagara Falls","Niagara","September 1","September 30",96,69,51.75]
[276,"NY","Nyack / Palisades","Rockland","","",117,69,51.75]
[480,"NY","Poughkeepsie","Dutchess","","",106,69,51.75]
[278,"NY","Riverhead / Ronkonkoma / Melville","Suffolk","","",145,69,51.75]
[279,"NY","Rochester","Monroe","","",114,69,51.75]
[281,"NY","Saratoga Springs / Schenectady","Saratoga / Schenectady","October 1","June 30",116,64,48]
[282,"NY","Saratoga Springs / Schenectady","Saratoga / Schenectady","July 1","August 31",180,64,48]
[283,"NY","Saratoga Springs / Schenectady","Saratoga / Schenectady","September 1","September 30",116,64,48]
[284,"NY","Syracuse / Oswego","Onondaga / Oswego","","",101,64,48]
[285,"NY","Tarrytown / White Plains / New Rochelle","Westchester","","",142,74,55.5]
[287,"NY","Troy ","Rensselaer","","",108,64,48]
[291,"NY","West Point","Orange","","",110,64,48]
[289,"OH","Akron","Summit","","",99,64,48]
[280,"OH","Canton","Stark","October 1","June 30",96,64,48]
[294,"OH","Canton","Stark","July 1","August 31",108,64,48]
[485,"OH","Canton","Stark","September 1","September 30",96,64,48]
[295,"OH","Cincinnati","Hamilton / Clermont","","",151,74,55.5]
[298,"OH","Cleveland","Cuyahoga","","",137,69,51.75]
[299,"OH","Columbus","Franklin","","",122,64,48]
[299,"OH","Dayton / Fairborn","Greene / Montgomery","","",109,64,48]
[299,"OH","Hamilton","Butler / Warren","","",117,59,44.25]
[300,"OH","Mentor","Lake","","",105,59,44.25]
[302,"OH","Sandusky","Erie","October 1","February 28",101,64,48]
[304,"OH","Sandusky","Erie","March 1","August 31",119,64,48]
[304,"OH","Sandusky","Erie","September 1","September 30",101,64,48]
[304,"OH","Wooster","Wayne","","",101,59,44.25]
[305,"OK","Oklahoma City","Oklahoma","","",104,64,48]
[306,"OR","Beaverton","Washington","","",136,64,48]
[306,"OR","Bend","Deschutes","October 1","May 31",115,64,48]
[306,"OR","Bend","Deschutes","June 1","August 31",161,64,48]
[307,"OR","Bend","Deschutes","September 1","September 30",115,64,48]
[313,"OR","Clackamas","Clackamas","October 1","May 31",115,64,48]
[309,"OR","Clackamas","Clackamas","June 1","August 31",138,64,48]
[310,"OR","Clackamas","Clackamas","September 1","September 30",115,64,48]
[311,"OR","Eugene / Florence","Lane","","",108,64,48]
[311,"OR","Lincoln City","Lincoln","October 1","June 30",114,69,51.75]
[311,"OR","Lincoln City","Lincoln","July 1","August 31",162,69,51.75]
[312,"OR","Lincoln City","Lincoln","September 1","September 30",114,69,51.75]
[489,"OR","Portland","Multnomah","October 1","October 31",182,74,55.5]
[489,"OR","Portland","Multnomah","November 1","May 31",152,74,55.5]
[489,"OR","Portland","Multnomah","June 1","September 30",182,74,55.5]
[489,"OR","Seaside","Clatsop","October 1","June 30",110,69,51.75]
[314,"OR","Seaside","Clatsop","July 1","August 31",182,69,51.75]
[315,"OR","Seaside","Clatsop","September 1","September 30",110,69,51.75]
[316,"PA","Allentown / Easton / Bethlehem","Lehigh / Northampton","","",109,64,48]
[435,"PA","Bucks","Bucks","October 1","May 31",102,64,48]
[317,"PA","Bucks","Bucks","June 1","July 31",116,64,48]
[317,"PA","Bucks","Bucks","August 1","September 30",102,64,48]
[317,"PA","Chester / Radnor / Essington","Delaware","","",119,64,48]
[317,"PA","Erie","Erie","","",98,59,44.25]
[317,"PA","Gettysburg","Adams","October 1","October 31",103,64,48]
[318,"PA","Gettysburg","Adams","November 1","March 31",96,64,48]
[319,"PA","Gettysburg","Adams","April 1","September 30",103,64,48]
[320,"PA","Harrisburg","Dauphin County excluding Hershey","","",117,64,{"$f":"H520*75%","v":48}]
[321,"PA","Hershey","Hershey","October 1","October 31",128,74,55.5]
[322,"PA","Hershey","Hershey","November 1","May 31",113,74,55.5]
[323,"PA","Hershey","Hershey","June 1","August 31",175,74,55.5]
[323,"PA","Hershey","Hershey","September 1","September 30",128,74,55.5]
[323,"PA","Lancaster","Lancaster","","",107,59,44.25]
[323,"PA","Malvern / Frazer / Berwyn","Chester","","",129,64,48]
[325,"PA","Montgomery","Montgomery","","",126,69,51.75]
[437,"PA","Philadelphia","Philadelphia","October 1","November 30",198,79,59.25]
[326,"PA","Philadelphia","Philadelphia","December 1","February 28",149,79,59.25]
[326,"PA","Philadelphia","Philadelphia","March 1","June 30",210,79,59.25]
[326,"PA","Philadelphia","Philadelphia","July 1","August 31",166,79,59.25]
[326,"PA","Philadelphia","Philadelphia","September 1","September 30",198,79,59.25]
[327,"PA","Pittsburgh","Allegheny","","",124,64,48]
[329,"PA","Reading","Berks","","",111,59,44.25]
[329,"PA","State College ","Centre","","",100,69,51.75]
[329,"RI","East Greenwich / Warwick","Kent","","",106,69,51.75]
[330,"RI","Jamestown / Middletown / Newport","Newport ","October 1","October 31",179,64,48]
[330,"RI","Jamestown / Middletown / Newport","Newport ","November 1","May 31",117,64,48]
[330,"RI","Jamestown / Middletown / Newport","Newport ","June 1","August 31",220,64,48]
[330,"RI","Jamestown / Middletown / Newport","Newport ","September 1","September 30",179,64,48]
[332,"RI","Providence / Bristol","Providence / Bristol","","",155,64,48]
[332,"SC","Charleston","Charleston / Berkeley / Dorchester","October 1","November 30",189,79,59.25]
[332,"SC","Charleston","Charleston / Berkeley / Dorchester","December 1","February 28",162,79,59.25]
[332,"SC","Charleston","Charleston / Berkeley / Dorchester","March 1","May 31",228,79,59.25]
[333,"SC","Charleston","Charleston / Berkeley / Dorchester","June 1","September 30",189,79,59.25]
[333,"SC","Columbia","Richland / Lexington","","",112,64,48]
[333,"SC","Hilton Head","Beaufort","October 1","March 31",115,69,51.75]
[334,"SC","Hilton Head","Beaufort","April 1","May 31",161,69,51.75]
[334,"SC","Hilton Head","Beaufort","June 1","August 31",182,69,51.75]
[334,"SC","Hilton Head","Beaufort","September 1","September 30",115,69,51.75]
[335,"SC","Myrtle Beach","Horry","October 1","March 31",96,69,51.75]
[336,"SC","Myrtle Beach","Horry","April 1","May 31",115,69,51.75]
[338,"SC","Myrtle Beach","Horry","June 1","August 31",167,69,51.75]
[339,"SC","Myrtle Beach","Horry","September 1","September 30",96,69,51.75]
[340,"SD","Deadwood / Spearfish ","Lawrence","October 1","May 31",96,74,55.5]
[342,"SD","Deadwood / Spearfish ","Lawrence","June 1","September 30",128,74,55.5]
[343,"SD","Hot Springs","Fall River / Custer","October 1","May 31",96,64,48]
[343,"SD","Hot Springs","Fall River / Custer","June 1","September 30",123,64,48]
[343,"SD","Rapid City","Pennington","October 1","May 31",96,64,48]
[486,"SD","Rapid City","Pennington","June 1","August 31",133,64,48]
[344,"SD","Rapid City","Pennington","September 1","September 30",96,64,48]
[345,"TN","Brentwood / Franklin","Williamson","","",125,69,51.75]
[346,"TN","Chattanooga ","Hamilton","","",109,64,48]
[346,"TN","Knoxville","Knox","","",102,64,48]
[346,"TN","Memphis","Shelby","","",123,69,51.75]
[347,"TN","Nashville","Davidson","October 1","November 30",234,79,59.25]
[348,"TN","Nashville","Davidson","December 1","January 31",187,79,59.25]
[348,"TN","Nashville","Davidson","February 1","June 30",230,79,59.25]
[348,"TN","Nashville","Davidson","July 1","August 31",207,79,59.25]
[350,"TN","Nashville","Davidson","September 1","September 30",234,79,59.25]
[350,"TX","Arlington / Fort Worth / Grapevine","Tarrant County / City of Grapevine","","",167,64,48]
[350,"TX","Austin","Travis","October 1","October 31",158,64,48]
[352,"TX","Austin","Travis","November 1","January 31",140,64,48]
[353,"TX","Austin","Travis","February 1","June 30",161,64,48]
[471,"TX","Austin","Travis","July 1","August 31",131,64,48]
[471,"TX","Austin","Travis","September 1","September 30",158,64,48]
[471,"TX","Big Spring","Howard","","",136,64,48]
[487,"TX","Corpus Christi","Nueces","","",103,64,48]
[487,"TX","Dallas","Dallas ","October 1","November 30",161,69,51.75]
[487,"TX","Dallas","Dallas ","December 1","August 31",154,69,51.75]
[492,"TX","Dallas","Dallas ","September 1","September 30",161,69,51.75]
[354,"TX","El Paso","El Paso","","",98,64,48]
[355,"TX","Galveston","Galveston","October 1","May 31",99,64,48]
[490,"TX","Galveston","Galveston","June 1","July 31",132,64,{"$f":"H584*75%","v":48}]
[356,"TX","Galveston","Galveston","August 1","September 30",99,64,48]
[357,"TX","Houston","Montgomery / Fort Bend / Harris","","",122,69,51.75]
[357,"TX","Midland / Odessa","Midland / Andrews / Ector / Martin","","",183,64,48]
[357,"TX","Pecos","Reeves","","",134,59,44.25]
[358,"TX","Plano","Collin","","",122,64,48]
[474,"TX","Round Rock ","Williamson","","",102,64,48]
[474,"TX","San Antonio","Bexar","","",124,64,48]
[474,"TX","South Padre Island","Cameron","October 1","February 28",96,59,44.25]
[360,"TX","South Padre Island","Cameron","March 1","July 31",105,59,44.25]
[360,"TX","South Padre Island","Cameron","August 1","September 30",96,59,44.25]
[360,"TX","Waco","McLennan","October 1","February 28",107,64,48]
[361,"TX","Waco","McLennan","March 1","April 30",123,64,48]
[362,"TX","Waco","McLennan","May 1","September 30",107,64,48]
[362,"UT","Moab","Grand","October 1","October 31",167,69,51.75]
[362,"UT","Moab","Grand","November 1","February 28",96,69,51.75]
[458,"UT","Moab","Grand","March 1","September 30",167,69,51.75]
[459,"UT","Park City","Summit","October 1","November 30",147,79,59.25]
[363,"UT","Park City","Summit","December 1","March 31",279,79,59.25]
[428,"UT","Park City","Summit","April 1","September 30",147,79,59.25]
[365,"UT","Provo","Utah","","",98,64,48]
[368,"UT","Salt Lake City","Salt Lake / Tooele","","",128,64,48]
[369,"VA","Blacksburg","Montgomery","October 1","October 31",123,59,44.25]
[371,"VA","Blacksburg","Montgomery","November 1","June 30",105,59,44.25]
[371,"VA","Blacksburg","Montgomery","July 1","September 30",123,59,44.25]
[371,"VA","Charlottesville","City of Charlottesville / Albemarle","","",126,69,51.75]
[372,"VA","Loudoun","Loudoun","","",116,69,51.75]
[372,"VA","Lynchburg","Campbell / Lynchburg City","","",104,64,48]
[372,"VA","Richmond","City of Richmond","","",145,64,48]
[373,"VA","Roanoke","City limits of Roanoke","","",122,59,44.25]
[374,"VA","Virginia Beach","City of Virginia Beach","October 1","May 31",106,64,48]
[374,"VA","Virginia Beach","City of Virginia Beach","June 1","August 31",186,64,48]
[374,"VA","Virginia Beach","City of Virginia Beach","September 1","September 30",106,64,48]
[377,"VA","Wallops Island","Accomack","October 1","June 30",112,64,48]
[377,"VA","Wallops Island","Accomack","July 1","August 31",207,64,48]
[377,"VA","Wallops Island","Accomack","September 1","September 30",112,64,48]
[378,"VA","Williamsburg / York","James City / York Counties / City of Williamsburg","October 1","December 31",102,64,48]
[378,"VA","Williamsburg / York","James City / York Counties / City of Williamsburg","January 1","March 31",96,64,48]
[378,"VA","Williamsburg / York","James City / York Counties / City of Williamsburg","April 1","August 31",118,64,48]
[379,"VA","Williamsburg / York","James City / York Counties / City of Williamsburg","September 1","September 30",102,64,48]
[380,"VT","Burlington","Chittenden","October 1","October 31",146,69,51.75]
[380,"VT","Burlington","Chittenden","November 1","May 31",111,69,51.75]
[380,"VT","Burlington","Chittenden","June 1","September 30",146,69,51.75]
[381,"VT","Manchester","Bennington","October 1","October 31",124,79,59.25]
[384,"VT","Manchester","Bennington","November 1","July 31",107,79,59.25]
[385,"VT","Manchester","Bennington","August 1","September 30",124,79,59.25]
[385,"VT","Montpelier","Washington","October 1","October 31",149,69,51.75]
[385,"VT","Montpelier","Washington","November 1","July 31",127,69,51.75]
[386,"VT","Montpelier","Washington","August 1","September 30",149,69,51.75]
[387,"VT","Stowe ","Lamoille","October 1","November 30",146,79,59.25]
[387,"VT","Stowe ","Lamoille","December 1","February 28",154,79,59.25]
[387,"VT","Stowe ","Lamoille","March 1","September 30",146,79,59.25]
[475,"VT","White River Junction","Windsor","October 1","October 31",112,64,48]
[389,"VT","White River Junction","Windsor","November 1","May 31",98,64,48]
[389,"VT","White River Junction","Windsor","June 1","September 30",112,64,48]
[389,"WA","Everett / Lynnwood","Snohomish","October 1","May 31",116,74,55.5]
[390,"WA","Everett / Lynnwood","Snohomish","June 1","August 31",139,74,55.5]
[391,"WA","Everett / Lynnwood","Snohomish","September 1","September 30",116,74,55.5]
[392,"WA","Ocean Shores","Grays Harbor","October 1","June 30",111,74,55.5]
[412,"WA","Ocean Shores","Grays Harbor","July 1","August 31",137,74,55.5]
[393,"WA","Ocean Shores","Grays Harbor","September 1","September 30",111,74,55.5]
[396,"WA","Olympia / Tumwater","Thurston","October 1","October 31",112,74,55.5]
[396,"WA","Olympia / Tumwater","Thurston","November 1","August 31",133,74,55.5]
[396,"WA","Olympia / Tumwater","Thurston","September 1","September 30",112,74,55.5]
[397,"WA","Port Angeles / Port Townsend","Clallam / Jefferson","October 1","June 30",104,74,{"$f":"H648*75%","v":55.5}]
[399,"WA","Port Angeles / Port Townsend","Clallam / Jefferson","July 1","August 31",161,74,55.5]
[399,"WA","Port Angeles / Port Townsend","Clallam / Jefferson","September 1","September 30",104,74,55.5]
[399,"WA","Richland / Pasco","Benton / Franklin","","",105,69,51.75]
[400,"WA","Seattle","King","October 1","October 31",232,79,59.25]
[400,"WA","Seattle","King","November 1","April 30",176,79,59.25]
[400,"WA","Seattle","King","May 1","September 30",232,79,59.25]
[401,"WA","Spokane","Spokane","","",114,74,55.5]
[401,"WA","Tacoma","Pierce","","",126,69,51.75]
[403,"WA","Vancouver","Clark / Cowlitz / Skamania","October 1","October 31",182,74,55.5]
[405,"WA","Vancouver","Clark / Cowlitz / Skamania","November 1","May 31",152,74,55.5]
[407,"WA","Vancouver","Clark / Cowlitz / Skamania","June 1","September 30",182,74,55.5]
[408,"WI","Appleton","Outagamie","","",103,59,44.25]
[408,"WI","Brookfield / Racine","Waukesha / Racine","","",103,64,48]
[453,"WI","Madison","Dane","October 1","October 31",131,64,48]
[449,"WI","Madison","Dane","November 1","March 31",109,64,48]
[409,"WI","Madison","Dane","April 1","September 30",131,64,48]
[409,"WI","Milwaukee","Milwaukee","October 1","May 31",128,64,48]
[null,"WI","Milwaukee","Milwaukee","June 1","July 31",149,64,48]
[null,"WI","Milwaukee","Milwaukee","August 1","September 30",128,64,48]
[null,"WI","Sturgeon Bay","Door","October 1","October 31",102,74,55.5]
[null,"WI","Sturgeon Bay","Door","November 1","May 31",96,74,55.5]
[null,"WI","Sturgeon Bay","Door","June 1","September 30",102,74,55.5]
[null,"WI","Wisconsin Dells","Columbia","October 1","May 31",104,59,44.25]
[null,"WI","Wisconsin Dells","Columbia","June 1","August 31",132,59,44.25]
[null,"WI","Wisconsin Dells","Columbia","September 1","September 30",104,59,44.25]
[null,"WV","Charleston","Kanawha","","",109,64,48]
[null,"WV","Morgantown","Monongalia","","",99,59,44.25]
[null,"WY","Cody","Park","October 1","May 31",131,69,51.75]
[null,"WY","Cody","Park","June 1","September 30",210,69,51.75]
[null,"WY","Jackson / Pinedale","Teton / Sublette","October 1","May 31",151,79,59.25]
[null,"WY","Jackson / Pinedale","Teton / Sublette","June 1","September 30",298,79,59.25]
[null,"WY","Rock Springs","Sweetwater","","",98,69,51.75]
[null,null,"ASIDE FROM HOT SPRINGS",null,null,null,111,64,48]

{"sheet":"FY2024 Per Diem Rates","index":4,"n_rows":669,"n_cols":8,"rows_kept":669,"cut":false,"hidden":false,"merged":[]}
[null,"FY2024 Per Diem Rates - Effective October 1, 2023"]
["ID","STATE","DESTINATION","COUNTY/LOCATION DEFINED","SEASON BEGIN","SEASON END","FY24 Lodging Rate","FY24 M&IE"]
[null,null,"Standard CONUS rate applies to all counties not specifically listed. Cities not listed may be located in a listed county.",null,null,null,107,59]
[1,"AL","Birmingham","Jefferson","","",123,69]
[2,"AL","Gulf Shores","Baldwin","October 1","February 28",137,69]
[2,"AL","Gulf Shores","Baldwin","March 1","May 31",164,69]
[2,"AL","Gulf Shores","Baldwin","June 1","July 31",237,69]
[2,"AL","Gulf Shores","Baldwin","August 1","September 30",137,69]
[3,"AL","Huntsville","Madison","","",127,74]
[460,"AL","Mobile","Mobile","October 1","December 31",111,59]
[460,"AL","Mobile","Mobile","January 1","March 31",120,59]
[460,"AL","Mobile","Mobile","April 1","September 30",111,59]
[6,"AR","Hot Springs","Garland","","",111,64]
[9,"AZ","Grand Canyon / Flagstaff","Coconino / Yavapai less the city of Sedona","October 1","October 31",141,74]
[9,"AZ","Grand Canyon / Flagstaff","Coconino / Yavapai less the city of Sedona","November 1","February 28",107,74]
[9,"AZ","Grand Canyon / Flagstaff","Coconino / Yavapai less the city of Sedona","March 1","April 30",139,74]
[9,"AZ","Grand Canyon / Flagstaff","Coconino / Yavapai less the city of Sedona","May 1","September 30",141,74]
[8,"AZ","Kayenta","Navajo","","",146,64]
[10,"AZ","Phoenix / Scottsdale","Maricopa","October 1","January 31",156,69]
[10,"AZ","Phoenix / Scottsdale","Maricopa","February 1","March 31",235,69]
[10,"AZ","Phoenix / Scottsdale","Maricopa","April 1","May 31",157,69]
[10,"AZ","Phoenix / Scottsdale","Maricopa","June 1","August 31",110,69]
[10,"AZ","Phoenix / Scottsdale","Maricopa","September 1","September 30",156,69]
[11,"AZ","Sedona","City Limits of Sedona","October 1","December 31",247,79]
[11,"AZ","Sedona","City Limits of Sedona","January 1","February 28",198,79]
[11,"AZ","Sedona","City Limits of Sedona","March 1","April 30",313,79]
[11,"AZ","Sedona","City Limits of Sedona","May 1","August 31",215,79]
[11,"AZ","Sedona","City Limits of Sedona","September 1","September 30",247,79]
[12,"AZ","Tucson","Pima","October 1","December 31",120,64]
[12,"AZ","Tucson","Pima","January 1","March 31",169,64]
[12,"AZ","Tucson","Pima","April 1","September 30",120,64]
[14,"CA","Antioch / Brentwood / Concord","Contra Costa","","",165,74]
[481,"CA","Bakersfield / Ridgecrest","Kern","","",129,64]
[16,"CA","Barstow / Ontario / Victorville","San Bernardino","","",124,64]
[20,"CA","Death Valley","Inyo / NAWS China Lake","","",140,69]
[461,"CA","Eureka / Arcata / McKinleyville","Humboldt","October 1","May 31",124,69]
[461,"CA","Eureka / Arcata / McKinleyville","Humboldt","June 1","August 31",173,69]
[461,"CA","Eureka / Arcata / McKinleyville","Humboldt","September 1","September 30",124,69]
[21,"CA","Fresno","Fresno","","",124,69]
[22,"CA","Los Angeles","Los Angeles / Orange / Ventura / Edwards AFB less the city of Santa Monica","October 1","October 31",183,74]
[22,"CA","Los Angeles","Los Angeles / Orange / Ventura / Edwards AFB less the city of Santa Monica","November 1","December 31",169,74]
[22,"CA","Los Angeles","Los Angeles / Orange / Ventura / Edwards AFB less the city of Santa Monica","January 1","September 30",183,74]
[23,"CA","Mammoth Lakes","Mono","October 1","November 30",142,79]
[23,"CA","Mammoth Lakes","Mono","December 1","June 30",178,79]
[23,"CA","Mammoth Lakes","Mono","July 1","September 30",142,79]
[24,"CA","Mill Valley / San Rafael / Novato","Marin","October 1","October 31",189,74]
[24,"CA","Mill Valley / San Rafael / Novato","Marin","November 1","May 31",166,74]
[24,"CA","Mill Valley / San Rafael / Novato","Marin","June 1","September 30",189,74]
[26,"CA","Monterey","Monterey","October 1","May 31",184,74]
[26,"CA","Monterey","Monterey","June 1","August 31",251,74]
[26,"CA","Monterey","Monterey","September 1","September 30",184,74]
[27,"CA","Napa","Napa","October 1","November 30",265,79]
[27,"CA","Napa","Napa","December 1","February 28",195,79]
[27,"CA","Napa","Napa","March 1","September 30",265,79]
[28,"CA","Oakhurst","Madera ","October 1","April 30",118,69]
[28,"CA","Oakhurst","Madera ","May 1","September 30",149,69]
[29,"CA","Oakland","Alameda","","",189,74]
[30,"CA","Palm Springs","Riverside","October 1","April 30",184,69]
[30,"CA","Palm Springs","Riverside","May 1","September 30",142,69]
[31,"CA","Point Arena / Gualala","Mendocino","","",133,79]
[33,"CA","Sacramento","Sacramento","","",145,69]
[34,"CA","San Diego","San Diego","October 1","May 31",194,74]
[34,"CA","San Diego","San Diego","June 1","August 31",230,74]
[34,"CA","San Diego","San Diego","September 1","September 30",194,74]
[35,"CA","San Francisco","San Francisco","October 1","December 31",288,79]
[35,"CA","San Francisco","San Francisco","January 1","March 31",333,79]
[35,"CA","San Francisco","San Francisco","April 1","August 31",270,79]
[35,"CA","San Francisco","San Francisco","September 1","September 30",288,79]
[36,"CA","San Luis Obispo","San Luis Obispo","October 1","May 31",156,74]
[36,"CA","San Luis Obispo","San Luis Obispo","June 1","August 31",196,74]
[36,"CA","San Luis Obispo","San Luis Obispo","September 1","September 30",156,74]
[37,"CA","San Mateo / Foster City / Belmont","San Mateo","","",222,74]
[38,"CA","Santa Barbara","Santa Barbara","October 1","June 30",214,74]
[38,"CA","Santa Barbara","Santa Barbara","July 1","August 31",289,74]
[38,"CA","Santa Barbara","Santa Barbara","September 1","September 30",214,74]
[39,"CA","Santa Cruz","Santa Cruz","October 1","May 31",143,69]
[39,"CA","Santa Cruz","Santa Cruz","June 1","August 31",181,69]
[39,"CA","Santa Cruz","Santa Cruz","September 1","September 30",143,69]
[40,"CA","Santa Monica ","City limits of Santa Monica","October 1","May 31",270,79]
[40,"CA","Santa Monica ","City limits of Santa Monica","June 1","August 31",298,79]
[40,"CA","Santa Monica ","City limits of Santa Monica","September 1","September 30",270,79]
[41,"CA","Santa Rosa","Sonoma","","",157,74]
[42,"CA","South Lake Tahoe","El Dorado","October 1","March 31",173,74]
[42,"CA","South Lake Tahoe","El Dorado","April 1","May 31",143,74]
[42,"CA","South Lake Tahoe","El Dorado","June 1","September 30",173,74]
[43,"CA","Stockton ","San Joaquin","","",140,74]
[44,"CA","Sunnyvale / Palo Alto / San Jose","Santa Clara","","",245,74]
[45,"CA","Tahoe City","Placer","","",132,74]
[46,"CA","Truckee","Nevada ","October 1","February 28",157,79]
[46,"CA","Truckee","Nevada ","March 1","May 31",137,79]
[46,"CA","Truckee","Nevada ","June 1","August 31",160,79]
[46,"CA","Truckee","Nevada ","September 1","September 30",157,79]
[47,"CA","Visalia","Tulare","","",132,69]
[48,"CA","West Sacramento / Davis","Yolo","","",138,69]
[49,"CA","Yosemite National Park","Mariposa","","",186,79]
[50,"CO","Aspen","Pitkin","October 1","November 30",188,79]
[50,"CO","Aspen","Pitkin","December 1","March 31",375,79]
[50,"CO","Aspen","Pitkin","April 1","May 31",147,79]
[50,"CO","Aspen","Pitkin","June 1","August 31",235,79]
[50,"CO","Aspen","Pitkin","September 1","September 30",188,79]
[52,"CO","Boulder / Broomfield","Boulder / Broomfield","October 1","April 30",135,69]
[52,"CO","Boulder / Broomfield","Boulder / Broomfield","May 1","August 31",176,69]
[52,"CO","Boulder / Broomfield","Boulder / Broomfield","September 1","September 30",135,69]
[53,"CO","Colorado Springs","El Paso","October 1","May 31",127,69]
[53,"CO","Colorado Springs","El Paso","June 1","August 31",178,69]
[53,"CO","Colorado Springs","El Paso","September 1","September 30",127,69]
[54,"CO","Cortez","Montezuma","October 1","October 31",134,64]
[54,"CO","Cortez","Montezuma","November 1","April 30",107,64]
[54,"CO","Cortez","Montezuma","May 1","September 30",134,64]
[55,"CO","Crested Butte / Gunnison","Gunnison","October 1","November 30",147,74]
[55,"CO","Crested Butte / Gunnison","Gunnison","December 1","March 31",175,74]
[55,"CO","Crested Butte / Gunnison","Gunnison","April 1","May 31",119,74]
[55,"CO","Crested Butte / Gunnison","Gunnison","June 1","September 30",147,74]
[56,"CO","Denver / Aurora","Denver / Adams / Arapahoe / Jefferson","October 1","October 31",201,79]
[56,"CO","Denver / Aurora","Denver / Adams / Arapahoe / Jefferson","November 1","December 31",153,79]
[56,"CO","Denver / Aurora","Denver / Adams / Arapahoe / Jefferson","January 1","March 31",169,79]
[56,"CO","Denver / Aurora","Denver / Adams / Arapahoe / Jefferson","April 1","September 30",201,79]
[427,"CO","Douglas ","Douglas","October 1","May 31",115,69]
[427,"CO","Douglas ","Douglas","June 1","August 31",140,69]
[427,"CO","Douglas ","Douglas","September 1","September 30",115,69]
[57,"CO","Durango","La Plata","October 1","May 31",119,74]
[57,"CO","Durango","La Plata","June 1","September 30",179,74]
[58,"CO","Fort Collins / Loveland","Larimer","","",117,69]
[493,"CO","Grand Lake","Grand","October 1","November 30",164,79]
[493,"CO","Grand Lake","Grand","December 1","March 31",278,79]
[493,"CO","Grand Lake","Grand","April 1","May 31",121,79]
[493,"CO","Grand Lake","Grand","June 1","September 30",164,79]
[61,"CO","Montrose","Montrose","October 1","October 31",150,69]
[61,"CO","Montrose","Montrose","November 1","May 31",115,69]
[61,"CO","Montrose","Montrose","June 1","September 30",150,69]
[63,"CO","Silverthorne / Breckenridge","Summit","October 1","November 30",185,79]
[63,"CO","Silverthorne / Breckenridge","Summit","December 1","March 31",332,79]
[63,"CO","Silverthorne / Breckenridge","Summit","April 1","May 31",150,79]
[63,"CO","Silverthorne / Breckenridge","Summit","June 1","September 30",185,79]
[64,"CO","Steamboat Springs","Routt","October 1","November 30",158,79]
[64,"CO","Steamboat Springs","Routt","December 1","March 31",233,79]
[64,"CO","Steamboat Springs","Routt","April 1","May 31",113,79]
[64,"CO","Steamboat Springs","Routt","June 1","September 30",158,79]
[65,"CO","Telluride","San Miguel","October 1","November 30",197,79]
[65,"CO","Telluride","San Miguel","December 1","March 31",418,79]
[65,"CO","Telluride","San Miguel","April 1","September 30",197,79]
[66,"CO","Vail","Eagle","October 1","November 30",208,79]
[66,"CO","Vail","Eagle","December 1","March 31",485,79]
[66,"CO","Vail","Eagle","April 1","September 30",208,79]
[67,"CT","Bridgeport / Danbury","Fairfield","","",139,69]
[69,"CT","Hartford","Hartford","","",133,69]
[71,"CT","New Haven","New Haven","","",126,69]
[72,"CT","New London / Groton","New London","","",125,69]
[75,"DC","District of Columbia","Washington DC (also the cities of Alexandria, Falls Church and Fairfax, and the counties of Arlington and Fairfax, in Virginia; and the counties of Montgomery and Prince George's in Maryland)","October 1","October 31",261,79]
[75,"DC","District of Columbia","Washington DC (also the cities of Alexandria, Falls Church and Fairfax, and the counties of Arlington and Fairfax, in Virginia; and the counties of Montgomery and Prince George's in Maryland)","November 1","February 28",193,79]
[75,"DC","District of Columbia","Washington DC (also the cities of Alexandria, Falls Church and Fairfax, and the counties of Arlington and Fairfax, in Virginia; and the counties of Montgomery and Prince George's in Maryland)","March 1","June 30",258,79]
[75,"DC","District of Columbia","Washington DC (also the cities of Alexandria, Falls Church and Fairfax, and the counties of Arlington and Fairfax, in Virginia; and the counties of Montgomery and Prince George's in Maryland)","July 1","August 31",176,79]
[75,"DC","District of Columbia","Washington DC (also the cities of Alexandria, Falls Church and Fairfax, and the counties of Arlington and Fairfax, in Virginia; and the counties of Montgomery and Prince George's in Maryland)","September 1","September 30",261,79]
[77,"DE","Lewes","Sussex","October 1","April 30",120,64]
[77,"DE","Lewes","Sussex","May 1","June 30",180,64]
[77,"DE","Lewes","Sussex","July 1","August 31",279,64]
[77,"DE","Lewes","Sussex","September 1","September 30",120,64]
[78,"DE","Wilmington","New Castle","","",131,64]
[99,"FL","Boca Raton / Delray Beach / Jupiter","Palm Beach / Hendry","October 1","November 30",161,69]
[99,"FL","Boca Raton / Delray Beach / Jupiter","Palm Beach / Hendry","December 1","April 30",255,69]
[99,"FL","Boca Raton / Delray Beach / Jupiter","Palm Beach / Hendry","May 1","September 30",161,69]
[80,"FL","Bradenton","Manatee","October 1","January 31",152,64]
[80,"FL","Bradenton","Manatee","February 1","March 31",222,64]
[80,"FL","Bradenton","Manatee","April 1","September 30",152,64]
[81,"FL","Cocoa Beach","Brevard","October 1","January 31",163,74]
[81,"FL","Cocoa Beach","Brevard","February 1","March 31",213,74]
[81,"FL","Cocoa Beach","Brevard","April 1","September 30",163,74]
[82,"FL","Daytona Beach","Volusia","October 1","January 31",125,69]
[82,"FL","Daytona Beach","Volusia","February 1","March 31",170,69]
[82,"FL","Daytona Beach","Volusia","April 1","July 31",140,69]
[82,"FL","Daytona Beach","Volusia","August 1","September 30",125,69]
[84,"FL","Fort Lauderdale","Broward","October 1","December 31",190,69]
[84,"FL","Fort Lauderdale","Broward","January 1","April 30",250,69]
[84,"FL","Fort Lauderdale","Broward","May 1","September 30",158,69]
[85,"FL","Fort Myers","Lee","October 1","November 30",138,64]
[85,"FL","Fort Myers","Lee","December 1","January 31",201,64]
[85,"FL","Fort Myers","Lee","February 1","March 31",252,64]
[85,"FL","Fort Myers","Lee","April 1","September 30",138,64]
[83,"FL","Fort Walton Beach / De Funiak Springs","Okaloosa / Walton","October 1","October 31",186,69]
[83,"FL","Fort Walton Beach / De Funiak Springs","Okaloosa / Walton","November 1","February 28",109,69]
[83,"FL","Fort Walton Beach / De Funiak Springs","Okaloosa / Walton","March 1","May 31",191,69]
[83,"FL","Fort Walton Beach / De Funiak Springs","Okaloosa / Walton","June 1","July 31",305,69]
[83,"FL","Fort Walton Beach / De Funiak Springs","Okaloosa / Walton","August 1","September 30",186,69]
[89,"FL","Gulf Breeze","Santa Rosa","October 1","February 28",130,59]
[89,"FL","Gulf Breeze","Santa Rosa","March 1","May 31",166,59]
[89,"FL","Gulf Breeze","Santa Rosa","June 1","July 31",252,59]
[89,"FL","Gulf Breeze","Santa Rosa","August 1","September 30",130,59]
[91,"FL","Key West","Monroe","October 1","November 30",289,69]
[91,"FL","Key West","Monroe","December 1","April 30",429,69]
[91,"FL","Key West","Monroe","May 1","July 31",329,69]
[91,"FL","Key West","Monroe","August 1","September 30",255,69]
[95,"FL","Miami","Miami-Dade","October 1","November 30",169,69]
[95,"FL","Miami","Miami-Dade","December 1","March 31",215,69]
[95,"FL","Miami","Miami-Dade","April 1","May 31",199,69]
[95,"FL","Miami","Miami-Dade","June 1","September 30",142,69]
[96,"FL","Naples","Collier","October 1","November 30",169,69]
[96,"FL","Naples","Collier","December 1","January 31",246,69]
[96,"FL","Naples","Collier","February 1","April 30",316,69]
[96,"FL","Naples","Collier","May 1","September 30",169,69]
[98,"FL","Orlando","Orange","October 1","December 31",140,69]
[98,"FL","Orlando","Orange","January 1","March 31",170,69]
[98,"FL","Orlando","Orange","April 1","September 30",140,69]
[100,"FL","Panama City","Bay","October 1","February 28",146,64]
[100,"FL","Panama City","Bay","March 1","May 31",165,64]
[100,"FL","Panama City","Bay","June 1","July 31",258,64]
[100,"FL","Panama City","Bay","August 1","September 30",146,64]
[101,"FL","Pensacola ","Escambia","October 1","February 28",133,64]
[101,"FL","Pensacola ","Escambia","March 1","May 31",156,64]
[101,"FL","Pensacola ","Escambia","June 1","July 31",214,64]
[101,"FL","Pensacola ","Escambia","August 1","September 30",133,64]
[102,"FL","Punta Gorda","Charlotte","October 1","January 31",163,64]
[102,"FL","Punta Gorda","Charlotte","February 1","March 31",215,64]
[102,"FL","Punta Gorda","Charlotte","April 1","September 30",107,64]
[103,"FL","Sarasota","Sarasota","October 1","January 31",167,69]
[103,"FL","Sarasota","Sarasota","February 1","April 30",211,69]
[103,"FL","Sarasota","Sarasota","May 1","September 30",130,69]
[104,"FL","Sebring","Highlands","October 1","January 31",123,64]
[104,"FL","Sebring","Highlands","February 1","March 31",208,64]
[104,"FL","Sebring","Highlands","April 1","September 30",123,64]
[105,"FL","St. Augustine","St. Johns","October 1","November 30",148,69]
[105,"FL","St. Augustine","St. Johns","December 1","March 31",168,69]
[105,"FL","St. Augustine","St. Johns","April 1","September 30",148,69]
[106,"FL","Stuart","Martin","October 1","January 31",132,69]
[106,"FL","Stuart","Martin","February 1","March 31",215,69]
[106,"FL","Stuart","Martin","April 1","September 30",132,69]
[107,"FL","Tallahassee","Leon","October 1","December 31",111,64]
[107,"FL","Tallahassee","Leon","January 1","March 31",148,64]
[107,"FL","Tallahassee","Leon","April 1","September 30",111,64]
[108,"FL","Tampa / St. Petersburg","Pinellas / Hillsborough","October 1","December 31",145,69]
[108,"FL","Tampa / St. Petersburg","Pinellas / Hillsborough","January 1","April 30",192,69]
[108,"FL","Tampa / St. Petersburg","Pinellas / Hillsborough","May 1","September 30",145,69]
[109,"FL","Vero Beach","Indian River","October 1","November 30",192,69]
[109,"FL","Vero Beach","Indian River","December 1","April 30",294,69]
[109,"FL","Vero Beach","Indian River","May 1","September 30",192,69]
[110,"GA","Athens","Clarke","","",120,59]
[111,"GA","Atlanta","Fulton / Dekalb","October 1","December 31",173,74]
[111,"GA","Atlanta","Fulton / Dekalb","January 1","March 31",199,74]
[111,"GA","Atlanta","Fulton / Dekalb","April 1","September 30",173,74]
[413,"GA","Augusta","Richmond","","",117,59]
[115,"GA","Jekyll Island / Brunswick","Glynn","October 1","February 28",172,79]
[115,"GA","Jekyll Island / Brunswick","Glynn","March 1","July 31",224,79]
[115,"GA","Jekyll Island / Brunswick","Glynn","August 1","September 30",172,79]
[494,"GA","Marietta","Cobb","","",121,64]
[116,"GA","Savannah","Chatham","","",147,69]
[476,"IA","Dallas","Dallas","","",111,69]
[118,"IA","Des Moines","Polk","","",114,64]
[495,"ID","Boise","Ada","","",165,74]
[120,"ID","Coeur d'Alene","Kootenai","October 1","May 31",116,64]
[120,"ID","Coeur d'Alene","Kootenai","June 1","August 31",185,64]
[120,"ID","Coeur d'Alene","Kootenai","September 1","September 30",116,64]
[122,"ID","Sun Valley / Ketchum","Blaine / Elmore","October 1","November 30",183,74]
[122,"ID","Sun Valley / Ketchum","Blaine / Elmore","December 1","March 31",313,74]
[122,"ID","Sun Valley / Ketchum","Blaine / Elmore","April 1","May 31",154,74]
[122,"ID","Sun Valley / Ketchum","Blaine / Elmore","June 1","September 30",275,74]
[422,"IL","Bolingbrook / Romeoville / Lemont","Will","","",113,64]
[123,"IL","Chicago","Cook / Lake","October 1","November 30",233,79]
[123,"IL","Chicago","Cook / Lake","December 1","March 31",146,79]
[123,"IL","Chicago","Cook / Lake","April 1","June 30",216,79]
[123,"IL","Chicago","Cook / Lake","July 1","August 31",213,79]
[123,"IL","Chicago","Cook / Lake","September 1","September 30",233,79]
[462,"IL","East St. Louis / O'Fallon / Fairview Heights","St. Clair","","",150,64]
[124,"IL","Oak Brook Terrace","DuPage","","",114,64]
[127,"IN","Bloomington ","Monroe","October 1","April 30",108,64]
[127,"IN","Bloomington ","Monroe","May 1","August 31",133,64]
[127,"IN","Bloomington ","Monroe","September 1","September 30",108,64]
[129,"IN","Ft. Wayne","Allen","","",108,64]
[130,"IN","Indianapolis / Carmel","Marion / Hamilton","","",127,69]
[131,"IN","Lafayette / West Lafayette","Tippecanoe","October 1","July 31",111,64]
[131,"IN","Lafayette / West Lafayette","Tippecanoe","August 1","September 30",135,64]
[137,"KS","Kansas City / Overland Park","Wyandotte / Johnson / Leavenworth","","",126,64]
[139,"KY","Boone","Boone","","",114,64]
[436,"KY","Kenton","Kenton","","",156,74]
[140,"KY","Lexington","Fayette","","",116,64]
[141,"KY","Louisville","Jefferson","October 1","October 31",137,64]
[141,"KY","Louisville","Jefferson","November 1","January 31",115,64]
[141,"KY","Louisville","Jefferson","February 1","May 31",149,64]
[141,"KY","Louisville","Jefferson","June 1","September 30",137,64]
[478,"LA","Alexandria / Leesville / Natchitoches","Allen / Jefferson Davis / Natchitoches / Rapides / Vernon Parishes","","",109,64]
[144,"LA","New Orleans","Orleans / Jefferson Parishes","October 1","January 31",162,74]
[144,"LA","New Orleans","Orleans / Jefferson Parishes","February 1","May 31",184,74]
[144,"LA","New Orleans","Orleans / Jefferson Parishes","June 1","August 31",143,74]
[144,"LA","New Orleans","Orleans / Jefferson Parishes","September 1","September 30",162,74]
[147,"MA","Andover","Essex","","",126,64]
[148,"MA","Boston / Cambridge","Suffolk, city of Cambridge","October 1","October 31",322,79]
[148,"MA","Boston / Cambridge","Suffolk, city of Cambridge","November 1","February 28",197,79]
[148,"MA","Boston / Cambridge","Suffolk, city of Cambridge","March 1","June 30",281,79]
[148,"MA","Boston / Cambridge","Suffolk, city of Cambridge","July 1","August 31",274,79]
[148,"MA","Boston / Cambridge","Suffolk, city of Cambridge","September 1","September 30",322,79]
[149,"MA","Burlington / Woburn","Middlesex less the city of Cambridge","October 1","October 31",168,69]
[149,"MA","Burlington / Woburn","Middlesex less the city of Cambridge","November 1","April 30",142,69]
[149,"MA","Burlington / Woburn","Middlesex less the city of Cambridge","May 1","September 30",168,69]
[150,"MA","Falmouth","City limits of Falmouth","October 1","April 30",171,69]
[150,"MA","Falmouth","City limits of Falmouth","May 1","June 30",231,69]
[150,"MA","Falmouth","City limits of Falmouth","July 1","August 31",383,69]
[150,"MA","Falmouth","City limits of Falmouth","September 1","September 30",171,69]
[151,"MA","Hyannis","Barnstable less the city of Falmouth","October 1","June 30",132,69]
[151,"MA","Hyannis","Barnstable less the city of Falmouth","July 1","August 31",232,69]
[151,"MA","Hyannis","Barnstable less the city of Falmouth","September 1","September 30",132,69]
[152,"MA","Martha's Vineyard","Dukes","October 1","May 31",202,79]
[152,"MA","Martha's Vineyard","Dukes","June 1","September 30",411,79]
[153,"MA","Nantucket","Nantucket","October 1","May 31",217,79]
[153,"MA","Nantucket","Nantucket","June 1","September 30",459,79]
[154,"MA","Northampton","Hampshire","","",146,69]
[155,"MA","Pittsfield","Berkshire","October 1","May 31",131,64]
[155,"MA","Pittsfield","Berkshire","June 1","August 31",160,64]
[155,"MA","Pittsfield","Berkshire","September 1","September 30",131,64]
[156,"MA","Plymouth / Taunton / New Bedford","Plymouth / Bristol","","",120,69]
[157,"MA","Quincy","Norfolk","","",150,69]
[158,"MA","Springfield","Hampden","","",122,64]
[160,"MA","Worcester","Worcester","","",130,69]
[161,"MD","Aberdeen / Bel Air / Belcamp","Harford","","",108,64]
[162,"MD","Annapolis","Anne Arundel","October 1","October 31",147,69]
[162,"MD","Annapolis","Anne Arundel","November 1","April 30",115,69]
[162,"MD","Annapolis","Anne Arundel","May 1","September 30",147,69]
[163,"MD","Baltimore City","Baltimore City","October 1","February 28",137,69]
[163,"MD","Baltimore City","Baltimore City","March 1","June 30",151,69]
[163,"MD","Baltimore City","Baltimore City","July 1","September 30",137,69]
[164,"MD","Cambridge / St. Michaels","Dorchester / Talbot","October 1","May 31",139,64]
[164,"MD","Cambridge / St. Michaels","Dorchester / Talbot","June 1","August 31",194,64]
[164,"MD","Cambridge / St. Michaels","Dorchester / Talbot","September 1","September 30",139,64]
[473,"MD","Centreville","Queen Anne","","",137,64]
[165,"MD","Columbia","Howard","","",111,69]
[170,"MD","Ocean City","Worcester","October 1","June 30",141,69]
[170,"MD","Ocean City","Worcester","July 1","August 31",325,69]
[170,"MD","Ocean City","Worcester","September 1","September 30",141,69]
[171,"ME","Bar Harbor / Rockport","Hancock / Knox","October 1","October 31",254,74]
[171,"ME","Bar Harbor / Rockport","Hancock / Knox","November 1","June 30",164,74]
[171,"ME","Bar Harbor / Rockport","Hancock / Knox","July 1","August 31",326,74]
[171,"ME","Bar Harbor / Rockport","Hancock / Knox","September 1","September 30",254,74]
[172,"ME","Kennebunk / Kittery / Sanford","York ","October 1","October 31",150,69]
[172,"ME","Kennebunk / Kittery / Sanford","York ","November 1","June 30",115,69]
[172,"ME","Kennebunk / Kittery / Sanford","York ","July 1","August 31",206,69]
[172,"ME","Kennebunk / Kittery / Sanford","York ","September 1","September 30",150,69]
[173,"ME","Portland","Cumberland / Sagadahoc","October 1","October 31",198,64]
[173,"ME","Portland","Cumberland / Sagadahoc","November 1","June 30",133,64]
[173,"ME","Portland","Cumberland / Sagadahoc","July 1","August 31",229,64]
[173,"ME","Portland","Cumberland / Sagadahoc","September 1","September 30",198,64]
[175,"MI","Ann Arbor","Washtenaw","","",134,69]
[178,"MI","Detroit","Wayne","","",145,64]
[183,"MI","Grand Rapids","Kent","","",117,64]
[184,"MI","Holland","Ottawa","October 1","April 30",126,64]
[184,"MI","Holland","Ottawa","May 1","June 30",142,64]
[184,"MI","Holland","Ottawa","July 1","September 30",126,64]
[187,"MI","Mackinac Island","Mackinac","October 1","October 31",134,74]
[187,"MI","Mackinac Island","Mackinac","November 1","June 30",127,74]
[187,"MI","Mackinac Island","Mackinac","July 1","August 31",211,74]
[187,"MI","Mackinac Island","Mackinac","September 1","September 30",134,74]
[188,"MI","Midland","Midland","","",127,59]
[190,"MI","Muskegon","Muskegon","October 1","May 31",107,64]
[190,"MI","Muskegon","Muskegon","June 1","August 31",144,64]
[190,"MI","Muskegon","Muskegon","September 1","September 30",107,64]
[192,"MI","Petoskey","Emmet","October 1","November 30",156,64]
[192,"MI","Petoskey","Emmet","December 1","June 30",138,64]
[192,"MI","Petoskey","Emmet","July 1","August 31",249,64]
[192,"MI","Petoskey","Emmet","September 1","September 30",156,64]
[193,"MI","Pontiac / Auburn Hills ","Oakland","","",117,64]
[195,"MI","South Haven","Van Buren","October 1","May 31",107,64]
[195,"MI","South Haven","Van Buren","June 1","August 31",127,64]
[195,"MI","South Haven","Van Buren","September 1","September 30",107,64]
[196,"MI","Traverse City","Grand Traverse","October 1","June 30",134,64]
[196,"MI","Traverse City","Grand Traverse","July 1","August 31",235,64]
[196,"MI","Traverse City","Grand Traverse","September 1","September 30",134,64]
[199,"MN","Duluth","St. Louis","October 1","October 31",200,79]
[199,"MN","Duluth","St. Louis","November 1","May 31",148,79]
[199,"MN","Duluth","St. Louis","June 1","September 30",200,79]
[201,"MN","Minneapolis / St. Paul","Hennepin / Ramsey","","",148,79]
[202,"MN","Rochester","Olmsted","","",133,64]
[204,"MO","Kansas City","Jackson / Clay / Cass / Platte","","",126,64]
[207,"MO","St. Louis","St. Louis / St. Louis City / St. Charles","","",150,64]
[477,"MS","Oxford","Lafayette","","",119,64]
[447,"MS","Southaven","Desoto","","",121,59]
[211,"MS","Starkville ","Oktibbeha","","",118,64]
[215,"MT","Big Sky / West Yellowstone/Gardiner","Gallatin/Park","October 1","May 31",171,79]
[215,"MT","Big Sky / West Yellowstone/Gardiner","Gallatin/Park","June 1","September 30",293,79]
[426,"MT","Helena","Lewis and Clark","","",122,64]
[496,"MT","Kalispell/Whitefish","Flathead","October 1","June 30",132,64]
[496,"MT","Kalispell/Whitefish","Flathead","July 1","August 31",243,64]
[496,"MT","Kalispell/Whitefish","Flathead","September 1","September 30",132,64]
[213,"MT","Missoula","Missoula","October 1","May 31",126,69]
[213,"MT","Missoula","Missoula","June 1","September 30",194,69]
[216,"NC","Asheville ","Buncombe","October 1","December 31",135,64]
[216,"NC","Asheville ","Buncombe","January 1","March 31",107,64]
[216,"NC","Asheville ","Buncombe","April 1","September 30",135,64]
[217,"NC","Atlantic Beach / Morehead City","Carteret","October 1","February 28",115,64]
[217,"NC","Atlantic Beach / Morehead City","Carteret","March 1","August 31",153,64]
[217,"NC","Atlantic Beach / Morehead City","Carteret","September 1","September 30",115,64]
[218,"NC","Chapel Hill","Orange","","",130,74]
[219,"NC","Charlotte","Mecklenburg","","",129,69]
[221,"NC","Durham","Durham","","",115,64]
[464,"NC","Fayetteville","Cumberland","","",123,64]
[222,"NC","Greensboro","Guilford","October 1","April 30",120,64]
[222,"NC","Greensboro","Guilford","May 1","September 30",116,64]
[224,"NC","Kill Devil Hills","Dare","October 1","March 31",118,74]
[224,"NC","Kill Devil Hills","Dare","April 1","June 30",214,74]
[224,"NC","Kill Devil Hills","Dare","July 1","September 30",251,74]
[227,"NC","Raleigh","Wake","","",125,64]
[229,"NC","Wilmington","New Hanover","","",133,59]
[231,"NE","Omaha","Douglas","","",115,64]
[232,"NH","Concord","Merrimack","","",122,64]
[233,"NH","Conway","Caroll","October 1","February 28",133,69]
[233,"NH","Conway","Caroll","March 1","June 30",116,69]
[233,"NH","Conway","Caroll","July 1","August 31",164,69]
[233,"NH","Conway","Caroll","September 1","September 30",133,69]
[234,"NH","Durham","Strafford","October 1","June 30",123,59]
[234,"NH","Durham","Strafford","July 1","August 31",148,59]
[234,"NH","Durham","Strafford","September 1","September 30",123,59]
[235,"NH","Laconia","Belknap","October 1","October 31",171,64]
[235,"NH","Laconia","Belknap","November 1","May 31",140,64]
[235,"NH","Laconia","Belknap","June 1","September 30",171,64]
[236,"NH","Lebanon / Lincoln / West Lebanon","Grafton","","",148,59]
[237,"NH","Manchester","Hillsborough","October 1","February 28",124,64]
[237,"NH","Manchester","Hillsborough","March 1","April 30",115,64]
[237,"NH","Manchester","Hillsborough","May 1","September 30",124,64]
[238,"NH","Portsmouth","Rockingham","October 1","October 31",169,64]
[238,"NH","Portsmouth","Rockingham","November 1","June 30",125,64]
[238,"NH","Portsmouth","Rockingham","July 1","August 31",189,64]
[238,"NH","Portsmouth","Rockingham","September 1","September 30",169,64]
[241,"NJ","Cherry Hill / Moorestown","Camden / Burlington","","",108,69]
[242,"NJ","Eatontown / Freehold","Monmouth","October 1","May 31",128,69]
[242,"NJ","Eatontown / Freehold","Monmouth","June 1","August 31",164,69]
[242,"NJ","Eatontown / Freehold","Monmouth","September 1","September 30",128,69]
[243,"NJ","Edison / Piscataway","Middlesex ","","",118,69]
[244,"NJ","Flemington","Hunterdon","","",127,69]
[246,"NJ","Newark","Essex / Bergen / Hudson / Passaic","","",147,69]
[247,"NJ","Parsippany","Morris","","",161,69]
[249,"NJ","Princeton / Trenton","Mercer","","",137,69]
[248,"NJ","Somerset","Somerset","","",153,64]
[250,"NJ","Springfield / Cranford / New Providence","Union","","",130,69]
[251,"NJ","Toms River","Ocean","October 1","June 30",152,69]
[251,"NJ","Toms River","Ocean","July 1","August 31",203,69]
[251,"NJ","Toms River","Ocean","September 1","September 30",152,69]
[252,"NM","Albuquerque","Bernalillo","October 1","October 31",141,69]
[252,"NM","Albuquerque","Bernalillo","November 1","February 28",130,69]
[252,"NM","Albuquerque","Bernalillo","March 1","September 30",141,69]
[479,"NM","Carlsbad","Eddy","","",212,64]
[254,"NM","Santa Fe","Santa Fe","October 1","December 31",162,69]
[254,"NM","Santa Fe","Santa Fe","January 1","February 28",122,69]
[254,"NM","Santa Fe","Santa Fe","March 1","September 30",162,69]
[423,"NM","Taos","Taos","","",135,64]
[255,"NV","Incline Village / Reno / Sparks","Washoe","October 1","June 30",125,69]
[255,"NV","Incline Village / Reno / Sparks","Washoe","July 1","August 31",152,69]
[255,"NV","Incline Village / Reno / Sparks","Washoe","September 1","September 30",125,69]
[256,"NV","Las Vegas","Clark","October 1","March 31",152,69]
[256,"NV","Las Vegas","Clark","April 1","August 31",120,69]
[256,"NV","Las Vegas","Clark","September 1","September 30",152,69]
[258,"NY","Albany","Albany","","",114,69]
[269,"NY","Binghamton","Broome","","",113,64]
[260,"NY","Buffalo","Erie","","",117,69]
[261,"NY","Floral Park / Garden City / Great Neck","Nassau","","",151,74]
[262,"NY","Glens Falls","Warren","October 1","June 30",119,69]
[262,"NY","Glens Falls","Warren","July 1","August 31",198,69]
[262,"NY","Glens Falls","Warren","September 1","September 30",119,69]
[277,"NY","Ithaca","Tompkins","","",139,74]
[264,"NY","Kingston","Ulster","","",141,69]
[265,"NY","Lake Placid","Essex","October 1","February 28",169,79]
[265,"NY","Lake Placid","Essex","March 1","June 30",140,79]
[265,"NY","Lake Placid","Essex","July 1","August 31",220,79]
[265,"NY","Lake Placid","Essex","September 1","September 30",169,79]
[266,"NY","New York City","Bronx / Kings / New York / Queens / Richmond","October 1","December 31",315,79]
[266,"NY","New York City","Bronx / Kings / New York / Queens / Richmond","January 1","February 28",169,79]
[266,"NY","New York City","Bronx / Kings / New York / Queens / Richmond","March 1","June 30",258,79]
[266,"NY","New York City","Bronx / Kings / New York / Queens / Richmond","July 1","August 31",225,79]
[266,"NY","New York City","Bronx / Kings / New York / Queens / Richmond","September 1","September 30",315,79]
[267,"NY","Niagara Falls","Niagara","October 1","May 31",107,69]
[267,"NY","Niagara Falls","Niagara","June 1","August 31",141,69]
[267,"NY","Niagara Falls","Niagara","September 1","September 30",107,69]
[268,"NY","Nyack / Palisades","Rockland","","",126,69]
[270,"NY","Poughkeepsie","Dutchess","","",113,69]
[271,"NY","Riverhead / Ronkonkoma / Melville","Suffolk","","",150,69]
[272,"NY","Rochester","Monroe","","",119,69]
[273,"NY","Saratoga Springs / Schenectady","Saratoga / Schenectady","October 1","June 30",121,64]
[273,"NY","Saratoga Springs / Schenectady","Saratoga / Schenectady","July 1","August 31",204,64]
[273,"NY","Saratoga Springs / Schenectady","Saratoga / Schenectady","September 1","September 30",121,64]
[274,"NY","Syracuse / Oswego","Onondaga / Oswego","","",116,64]
[275,"NY","Tarrytown / White Plains / New Rochelle","Westchester","","",151,74]
[276,"NY","Troy ","Rensselaer","","",118,64]
[278,"NY","West Point","Orange","","",121,64]
[281,"OH","Canton","Stark","October 1","June 30",107,64]
[281,"OH","Canton","Stark","July 1","August 31",116,64]
[281,"OH","Canton","Stark","September 1","September 30",107,64]
[282,"OH","Cincinnati","Hamilton / Clermont","","",156,74]
[283,"OH","Cleveland","Cuyahoga","","",150,69]
[284,"OH","Columbus","Franklin","","",122,64]
[285,"OH","Dayton / Fairborn","Greene / Montgomery","","",111,64]
[287,"OH","Hamilton","Butler / Warren","","",122,59]
[289,"OH","Mentor","Lake","","",110,59]
[280,"OH","Sandusky","Erie","October 1","February 28",115,64]
[280,"OH","Sandusky","Erie","March 1","August 31",152,64]
[280,"OH","Sandusky","Erie","September 1","September 30",115,64]
[295,"OK","Oklahoma City","Oklahoma","","",110,64]
[298,"OR","Beaverton","Washington","","",136,64]
[299,"OR","Bend","Deschutes","October 1","May 31",126,64]
[299,"OR","Bend","Deschutes","June 1","August 31",191,64]
[299,"OR","Bend","Deschutes","September 1","September 30",126,64]
[300,"OR","Clackamas","Clackamas","October 1","May 31",127,64]
[300,"OR","Clackamas","Clackamas","June 1","August 31",148,64]
[300,"OR","Clackamas","Clackamas","September 1","September 30",127,64]
[302,"OR","Eugene / Florence","Lane","October 1","May 31",132,64]
[302,"OR","Eugene / Florence","Lane","June 1","July 31",206,64]
[302,"OR","Eugene / Florence","Lane","August 1","September 30",132,64]
[304,"OR","Lincoln City","Lincoln","October 1","June 30",131,69]
[304,"OR","Lincoln City","Lincoln","July 1","August 31",202,69]
[304,"OR","Lincoln City","Lincoln","September 1","September 30",131,69]
[305,"OR","Portland","Multnomah","October 1","October 31",182,74]
[305,"OR","Portland","Multnomah","November 1","May 31",152,74]
[305,"OR","Portland","Multnomah","June 1","September 30",182,74]
[306,"OR","Seaside","Clatsop","October 1","January 31",130,69]
[306,"OR","Seaside","Clatsop","February 1","June 30",135,69]
[306,"OR","Seaside","Clatsop","July 1","August 31",222,69]
[306,"OR","Seaside","Clatsop","September 1","September 30",130,69]
[307,"PA","Allentown / Easton / Bethlehem","Lehigh / Northampton","","",118,64]
[313,"PA","Bucks","Bucks","","",119,64]
[309,"PA","Chester / Radnor / Essington","Delaware","","",124,64]
[311,"PA","Gettysburg","Adams","","",110,64]
[312,"PA","Harrisburg","Dauphin County excluding Hershey","","",121,64]
[489,"PA","Hershey","Hershey","October 1","October 31",156,74]
[489,"PA","Hershey","Hershey","November 1","May 31",133,74]
[489,"PA","Hershey","Hershey","June 1","August 31",203,74]
[489,"PA","Hershey","Hershey","September 1","September 30",156,74]
[314,"PA","Lancaster","Lancaster","","",121,59]
[315,"PA","Malvern / Frazer / Berwyn","Chester","","",129,64]
[435,"PA","Montgomery","Montgomery","","",126,69]
[317,"PA","Philadelphia","Philadelphia","October 1","November 30",211,79]
[317,"PA","Philadelphia","Philadelphia","December 1","February 28",157,79]
[317,"PA","Philadelphia","Philadelphia","March 1","June 30",210,79]
[317,"PA","Philadelphia","Philadelphia","July 1","August 31",169,79]
[317,"PA","Philadelphia","Philadelphia","September 1","September 30",211,79]
[318,"PA","Pittsburgh","Allegheny","","",136,64]
[319,"PA","Reading","Berks","","",121,59]
[321,"PA","State College ","Centre","","",114,69]
[322,"RI","East Greenwich / Warwick","Kent","","",108,69]
[323,"RI","Jamestown / Middletown / Newport","Newport ","October 1","October 31",231,64]
[323,"RI","Jamestown / Middletown / Newport","Newport ","November 1","May 31",143,64]
[323,"RI","Jamestown / Middletown / Newport","Newport ","June 1","August 31",284,64]
[323,"RI","Jamestown / Middletown / Newport","Newport ","September 1","September 30",231,64]
[325,"RI","Providence / Bristol","Providence / Bristol","","",155,64]
[326,"SC","Charleston","Charleston / Berkeley / Dorchester","October 1","February 28",249,79]
[326,"SC","Charleston","Charleston / Berkeley / Dorchester","March 1","May 31",303,79]
[326,"SC","Charleston","Charleston / Berkeley / Dorchester","June 1","September 30",249,79]
[327,"SC","Columbia","Richland / Lexington","","",112,64]
[329,"SC","Hilton Head","Beaufort","October 1","October 31",163,69]
[329,"SC","Hilton Head","Beaufort","November 1","February 28",122,69]
[329,"SC","Hilton Head","Beaufort","March 1","May 31",196,69]
[329,"SC","Hilton Head","Beaufort","June 1","August 31",235,69]
[329,"SC","Hilton Head","Beaufort","September 1","September 30",163,69]
[330,"SC","Myrtle Beach","Horry","October 1","March 31",107,69]
[330,"SC","Myrtle Beach","Horry","April 1","May 31",130,69]
[330,"SC","Myrtle Beach","Horry","June 1","August 31",203,69]
[330,"SC","Myrtle Beach","Horry","September 1","September 30",107,69]
[334,"SD","Deadwood / Spearfish ","Lawrence","October 1","May 31",107,74]
[334,"SD","Deadwood / Spearfish ","Lawrence","June 1","September 30",157,74]
[332,"SD","Hot Springs","Fall River / Custer","October 1","May 31",107,64]
[332,"SD","Hot Springs","Fall River / Custer","June 1","September 30",152,64]
[333,"SD","Rapid City","Pennington","October 1","May 31",107,64]
[333,"SD","Rapid City","Pennington","June 1","August 31",169,64]
[333,"SD","Rapid City","Pennington","September 1","September 30",107,64]
[335,"TN","Brentwood / Franklin","Williamson","","",125,69]
[336,"TN","Chattanooga ","Hamilton","","",117,64]
[338,"TN","Knoxville","Knox","","",113,64]
[339,"TN","Memphis","Shelby","","",123,69]
[340,"TN","Nashville","Davidson","October 1","November 30",237,79]
[340,"TN","Nashville","Davidson","December 1","January 31",187,79]
[340,"TN","Nashville","Davidson","February 1","June 30",233,79]
[340,"TN","Nashville","Davidson","July 1","August 31",210,79]
[340,"TN","Nashville","Davidson","September 1","September 30",237,79]
[342,"TX","Arlington / Fort Worth / Grapevine","Tarrant County / City of Grapevine","","",175,64]
[343,"TX","Austin","Travis","October 1","March 31",184,64]
[343,"TX","Austin","Travis","April 1","August 31",170,64]
[343,"TX","Austin","Travis","September 1","September 30",184,64]
[486,"TX","Big Spring","Howard","","",136,64]
[346,"TX","Dallas","Dallas ","October 1","December 31",164,69]
[346,"TX","Dallas","Dallas ","January 1","March 31",182,69]
[346,"TX","Dallas","Dallas ","April 1","September 30",164,69]
[348,"TX","Galveston","Galveston","October 1","May 31",107,64]
[348,"TX","Galveston","Galveston","June 1","July 31",142,64]
[348,"TX","Galveston","Galveston","August 1","September 30",107,64]
[350,"TX","Houston","Montgomery / Fort Bend / Harris","","",122,69]
[471,"TX","Midland / Odessa","Midland / Andrews / Ector / Martin","","",183,64]
[492,"TX","Pecos","Reeves","","",134,59]
[354,"TX","Plano","Collin","","",122,64]
[356,"TX","San Antonio","Bexar","","",143,64]
[357,"TX","South Padre Island","Cameron","October 1","February 28",108,59]
[357,"TX","South Padre Island","Cameron","March 1","July 31",130,59]
[357,"TX","South Padre Island","Cameron","August 1","September 30",108,59]
[358,"TX","Waco","McLennan","October 1","February 28",107,64]
[358,"TX","Waco","McLennan","March 1","April 30",123,64]
[358,"TX","Waco","McLennan","May 1","September 30",107,64]
[474,"UT","Moab","Grand","October 1","October 31",210,69]
[474,"UT","Moab","Grand","November 1","February 28",107,69]
[474,"UT","Moab","Grand","March 1","September 30",210,69]
[360,"UT","Park City","Summit","October 1","November 30",204,79]
[360,"UT","Park City","Summit","December 1","March 31",425,79]
[360,"UT","Park City","Summit","April 1","September 30",204,79]
[361,"UT","Provo","Utah","","",111,64]
[362,"UT","Salt Lake City","Salt Lake / Tooele","October 1","March 31",139,64]
[362,"UT","Salt Lake City","Salt Lake / Tooele","April 1","May 31",132,64]
[362,"UT","Salt Lake City","Salt Lake / Tooele","June 1","September 30",139,64]
[459,"VA","Blacksburg","Montgomery","October 1","October 31",134,59]
[459,"VA","Blacksburg","Montgomery","November 1","June 30",111,59]
[459,"VA","Blacksburg","Montgomery","July 1","September 30",134,59]
[363,"VA","Charlottesville","City of Charlottesville / Albemarle","","",133,69]
[428,"VA","Loudoun","Loudoun","","",116,69]
[365,"VA","Lynchburg","Campbell / Lynchburg City","","",109,64]
[368,"VA","Richmond","City of Richmond","","",149,64]
[369,"VA","Roanoke","City limits of Roanoke","","",122,59]
[371,"VA","Virginia Beach","City of Virginia Beach","October 1","May 31",120,64]
[371,"VA","Virginia Beach","City of Virginia Beach","June 1","August 31",222,64]
[371,"VA","Virginia Beach","City of Virginia Beach","September 1","September 30",120,64]
[372,"VA","Wallops Island","Accomack","October 1","June 30",129,64]
[372,"VA","Wallops Island","Accomack","July 1","August 31",245,64]
[372,"VA","Wallops Island","Accomack","September 1","September 30",129,64]
[374,"VA","Williamsburg / York","James City / York Counties / City of Williamsburg","October 1","December 31",118,64]
[374,"VA","Williamsburg / York","James City / York Counties / City of Williamsburg","January 1","March 31",107,64]
[374,"VA","Williamsburg / York","James City / York Counties / City of Williamsburg","April 1","August 31",137,64]
[374,"VA","Williamsburg / York","James City / York Counties / City of Williamsburg","September 1","September 30",118,64]
[377,"VT","Burlington","Chittenden","October 1","October 31",187,69]
[377,"VT","Burlington","Chittenden","November 1","April 30",125,69]
[377,"VT","Burlington","Chittenden","May 1","September 30",187,69]
[378,"VT","Manchester","Bennington","October 1","October 31",225,79]
[378,"VT","Manchester","Bennington","November 1","July 31",172,79]
[378,"VT","Manchester","Bennington","August 1","September 30",225,79]
[379,"VT","Montpelier","Washington","October 1","October 31",214,69]
[379,"VT","Montpelier","Washington","November 1","July 31",162,69]
[379,"VT","Montpelier","Washington","August 1","September 30",214,69]
[380,"VT","Stowe ","Lamoille","October 1","November 30",176,79]
[380,"VT","Stowe ","Lamoille","December 1","February 28",167,79]
[380,"VT","Stowe ","Lamoille","March 1","September 30",176,79]
[381,"VT","White River Junction","Windsor","October 1","October 31",138,64]
[381,"VT","White River Junction","Windsor","November 1","June 30",118,64]
[381,"VT","White River Junction","Windsor","July 1","September 30",138,64]
[384,"WA","Everett / Lynnwood","Snohomish","October 1","May 31",116,74]
[384,"WA","Everett / Lynnwood","Snohomish","June 1","August 31",139,74]
[384,"WA","Everett / Lynnwood","Snohomish","September 1","September 30",116,74]
[385,"WA","Ocean Shores","Grays Harbor","October 1","June 30",111,74]
[385,"WA","Ocean Shores","Grays Harbor","July 1","August 31",146,74]
[385,"WA","Ocean Shores","Grays Harbor","September 1","September 30",111,74]
[386,"WA","Olympia / Tumwater","Thurston","October 1","October 31",132,74]
[386,"WA","Olympia / Tumwater","Thurston","November 1","August 31",153,74]
[386,"WA","Olympia / Tumwater","Thurston","September 1","September 30",132,74]
[387,"WA","Port Angeles / Port Townsend","Clallam / Jefferson","October 1","June 30",129,74]
[387,"WA","Port Angeles / Port Townsend","Clallam / Jefferson","July 1","August 31",219,74]
[387,"WA","Port Angeles / Port Townsend","Clallam / Jefferson","September 1","September 30",129,74]
[475,"WA","Richland / Pasco","Benton / Franklin","","",118,69]
[389,"WA","Seattle","King","October 1","October 31",232,79]
[389,"WA","Seattle","King","November 1","April 30",176,79]
[389,"WA","Seattle","King","May 1","September 30",232,79]
[390,"WA","Spokane","Spokane","","",127,74]
[391,"WA","Tacoma","Pierce","","",132,69]
[392,"WA","Vancouver","Clark / Cowlitz / Skamania","October 1","October 31",182,74]
[392,"WA","Vancouver","Clark / Cowlitz / Skamania","November 1","May 31",152,74]
[392,"WA","Vancouver","Clark / Cowlitz / Skamania","June 1","September 30",182,74]
[396,"WI","Madison","Dane","October 1","October 31",131,64]
[396,"WI","Madison","Dane","November 1","March 31",109,64]
[396,"WI","Madison","Dane","April 1","September 30",131,64]
[397,"WI","Milwaukee","Milwaukee","October 1","May 31",129,64]
[397,"WI","Milwaukee","Milwaukee","June 1","July 31",155,64]
[397,"WI","Milwaukee","Milwaukee","August 1","September 30",129,64]
[400,"WI","Sturgeon Bay","Door","October 1","October 31",128,74]
[400,"WI","Sturgeon Bay","Door","November 1","May 31",107,74]
[400,"WI","Sturgeon Bay","Door","June 1","September 30",128,74]
[401,"WI","Wisconsin Dells","Columbia","October 1","May 31",107,59]
[401,"WI","Wisconsin Dells","Columbia","June 1","August 31",132,59]
[401,"WI","Wisconsin Dells","Columbia","September 1","September 30",107,59]
[406,"WV","Charles Town","Jefferson","","",112,74]
[403,"WV","Charleston","Kanawha","","",113,64]
[408,"WY","Cody","Park","October 1","May 31",162,69]
[408,"WY","Cody","Park","June 1","September 30",282,69]
[409,"WY","Jackson / Pinedale","Teton / Sublette","October 1","May 31",207,79]
[409,"WY","Jackson / Pinedale","Teton / Sublette","June 1","September 30",384,79]